Workbook

Sheet 1 апреля (hidden)
B2: Согласно контракту
B3: №2024.617
B4: от 23.12.2023 г.
C6: 10 день
B9: Д/сад | C9: МБДОУ "ЦРР-д/с № 22"Алсу" | D9: День | E9: 2024-03-01
B11: 10 | C11: Блюдо | D11: С 3 лет | E11: до 7 лет
D12: грамм | E12: ккал
B13: Завтрак/иртәнге аш | C13: Каша геркулесовая молочная с маслом сливочным | D13: 180/5 | E13: 251.91
C14: Кофейный напиток с молоком | D14: 180/6 | E14: 42.67
C15: Бутерброд с маслом сливочным | D15: 30/5 | E15: 111.60
B16: 09.00 | C16: апельсин | D16: 100 | E16: 47.0
B17: Обед/төшке аш | C17: Салат из свеклы с сыром | D17: 60 | E17: 78.42
C18: Рассольник ленинградский с куриными фрикадельками, со сметаной | D18: 180/11/7 | E18: 117.51
C19: Котлеты рыбные с маслом сливочным | D19: 70/3 | E19: 144.36
C20: Макаронные изделия отварные с овощами | D20: 130 | E20: 163.28
C21: Кисель | D21: 180 | E21: 75.24
C22: хлеб пшеничный | D22: 25 | E22: 58.75
C23: Хлеб ржаной | D23: 45 | E23: 89.10
B24: Полдник/төштән соңгы аш | C24: Молоко кипяченое | D24: 180 | E24: 96.30
C25: Кондитерские изделия (печенье) | D25: 20 | E25: 90.20
B26: Ужин/кичке аш | C26: Капуста тушеная с мясом | D26: 180 | E26: 250.30
C27: Напиток из шиповника | D27: 180/6 | E27: 79.38
C28: Хлеб пшеничный | D28: 30 | E28: 70.50
D29: 152,36 руб | E29: =E28+E27+E26+E25+E24+E23+E22+E21+E20+E19+E18+E17+E16+E15+E14+E13 -> 1766.52

Sheet Лист1 (hidden)

Sheet Лист2 (hidden)

Sheet 1 апр. (hidden)

Sheet Лист3 (hidden)

Sheet Лист4 (hidden)

Sheet Лист5 (hidden)

Sheet Лист6 (hidden)

Sheet Лист7 (hidden)

Sheet Лист8 (hidden)

Sheet Лист9 (hidden)

Sheet Лист10 (hidden)

Sheet Лист11 (hidden)

Sheet Лист12 (hidden)

Sheet Лист13 (hidden)

Sheet Лист14 (hidden)

Sheet Лист15 (hidden)

Sheet Лист16 (hidden)

Sheet Лист17 (hidden)

Sheet Лист18 (hidden)

Sheet Лист19 (hidden)

Sheet Лист20 (hidden)

Sheet Лист21 (hidden)

Sheet Лист22 (hidden)

Sheet Лист23 (hidden)

Sheet 2 апр. (hidden)
B2: Согласно контракту
B3: №2024.617
B4: от 23.12.2023 г.
C6: 2 день
B9: Д/сад | C9: МБДОУ "ЦРР-д/с № 22"Алсу" | D9: День | E9: 2024-04-02
B11: 10 | C11: Блюдо | D11: С 3 лет | E11: до 7 лет
D12: грамм | E12: ккал
B13: Завтрак/иртәнге аш | C13: Каша полбяная молочная с маслом сливочным | D13: 180/3 | E13: 202.64
C14: какао с молоком | D14: 180 | E14: 58.83
C15: Бутерброд с сыром, маслом сливочным | D15: 30/5/5 | E15: 128.77
B16: 09.00 | C16: Сок | D16: 180 | E16: 94.4
B17: Обед/төшке аш | C17: Салат из картофеля с солеными огурцами | D17: 60 | E17: 66.84
C18: Борщ со свежей капустой, картофелем на курином б-не, с куриными фрикадельками, со сметаной | D18: 180/10/7 | E18: 106.63
C19: Фрикадельки куриные в молочном соусе | D19: 50/25 | E19: 136.30
C20: Макароны отварны с маслом сливочным | D20: 130/3 | E20: 155.22
C21: Компот из свежих яблок | D21: 180 | E21: 55.26
C22: Хлеб пшеничный | D22: 25 | E22: 58.75
C23: Хлеб ржаной | D23: 45 | E23: 89.10
B24: Полдник/төштән соңгы аш | C24: Ряженка | D24: 180 | E24: 91.80
C25: Булочка дорожная | D25: 50 | E25: 165.50
B26: Ужин/кичке аш | C26: Запеканка творожная с повидлом | D26: 120/30 | E26: 418.50
C27: Чай с сахаром и лимоном | D27: 180/6/7 | E27: 26.48
D28: 152,36 руб | E28: =E27+E26+E25+E24+E23+E22+E21+E20+E18+E19+E17+E16+E15+E14 -> 1652.38

Sheet 3 апр. (hidden)
B2: Согласно контракту
B3: №2024.617
B4: от 23.12.2023 г.
C6: 3 день
B9: Д/сад | C9: МБДОУ "ЦРР-д/с № 22"Алсу" | D9: День | E9: 2024-04-03
B11: 10 | C11: Блюдо | D11: С 3 лет | E11: до 7 лет
D12: грамм | E12: ккал
B13: Завтрак/иртәнге аш | C13: Каша кукурузная молочная с маслом сливочным | D13: 180/5 | E13: 274.16
C14: Чай с сахаром и молоком | D14: 180/6 | E14: 72.7
C15: Бутерброд с маслом сливочным | D15: 30/5 | E15: 111.60
B16: 09.00 | C16: Яблоко | D16: 100 | E16: 47.0
B17: Обед/төшке аш | C17: Салат из припущенной моркови с яблоками60 | D17: 60 | E17: 24.24
C18: Суп картофельный гороховый на мясном б-не с мясом | D18: 180/10 | E18: 121.57
C19: плов из отварной говядины | D19: 200 | E19: 396.00
C20: Компот из урюка | D20: 180 | E20: 68.20
C21: Хлеб пшеничный | D21: 25 | E21: 58.75
C22: Хлеб ржаной | D22: 45 | E22: 89.10
B23: Полдник/төштән соңгы аш | C23: Молоко кипяченое | D23: 180 | E23: 75.24
C24: Печенье | D24: 20 | E24: 89.10
B25: Ужин/кичке аш | C25: Фрикадельки рыбный отварные | D25: 80 | E25: 88.00
C26: Картофель тушеный с овощами в соусе | D26: 140 | E26: 201.60
C27: Напиток из шиповника | D27: 180/6 | E27: 79.38
C28: Хлеб пшеничный | D28: 30 | E28: 70.50
D29: 152,36 руб | E29: =E28+E27+E26+E25+E24+E23+E22+E21+E20+E19+E18+E17+E16+E15+E14+E13 -> 1867.14

Sheet 2 мая (hidden)
B2: Согласно контракту
B3: №2024.617
B4: от 23.12.2023 г.
C7: 4 день
B9: Д/сад | C9: МБДОУ "ЦРР-д/с № 22"Алсу" | D9: День | E9: 2024-05-02
B11: 10 | C11: Блюдо | D11: С 3 лет | E11: до 7 лет
D12: грамм | E12: ккал
B13: Завтрак/иртәнге аш | C13: Каша ячневая молочная с маслом сливочным | D13: 180/3 | E13: 223.41
C14: Кофейный напиток с молоком | D14: 180/6 | E14: 42.67
C15: Бутерброд с маслом сливочным, повидлом | D15: 30/5/10 | E15: 119.80
B16: 09.00 | C16: Сок | D16: 180 | E16: 94.4
B17: Обед/төшке аш | C17: Салат из зеленого горошка к/с | D17: 50 | E17: 41.80
C18: Суп картофельный с пшенной крупой на курином б-не, с мясом птицы | D18: 180/10 | E18: 76.57
C19: птица, тушенная с соусе с овощами | D19: 200 | E19: 264.00
C20: Компот из изюма и яблок | D20: 180 | E20: 108.00
C21: Хлеб пшеничный | D21: 225 | E21: 58.75
C22: Хлеб ржаной | D22: 45 | E22: 89.10
B23: Полдник/төштән соңгы аш | C23: Кефир | D23: 180 | E23: 90.00
C24: Кондитерские изделия (печенье) | D24: 20 | E24: 90.20
B25: Ужин/кичке аш | C25: Омлет натуральный с сыром | D25: 150 | E25: 347.50
C26: Чай с сахаром | D26: 180/6 | E26: 24.10
C27: Хлеб пшеничный | D27: 30 | E27: 70.50
D28: 152,36 руб | E28: =E27+E26+E25+E24+E23+E22+E21+E20+E19+E18+E17+E16+E15+E14+E13 -> 1740.80

Sheet 1 июля (hidden)
B2: Согласно контракту
B3: №2024.617
B4: от 23.12.2023 г.
C7: 6 день
B9: Д/сад | C9: МБДОУ "ЦРР-д/с № 22"Алсу"
B11: 10 | C11: Блюдо | D11: С 3 лет | E11: до 7 лет
D12: грамм | E12: ккал
B13: Завтрак/иртәнге аш | C13: Каша пшенная молочная с маслом сливочным | D13: 180/3 | E13: 208.76
C14: Чай с молоком и сахаром | D14: 180/6 | E14: 75.76
C15: Бутерброд с маслом сливочным | D15: 30/5 | E15: 111.60
B16: 09.00 | C16: Сок | D16: 180 | E16: 94.4
B17: Обед/төшке аш | C17: Салат картофельный с морковуью и кукурузой к/с | D17: 60 | E17: 24.24
C18: Суп из овощей на курином б-не, с мясными фрикадельками, со сметаной | D18: 180/11/7 | E18: 101.49
C19: Ежики куриные в сметанно-томатномном соусе | D19: 50/25 | E19: 123.03
C20: вермишель отварной | D20: 130 | E20: 135.46
C21: Напиток из сухофруктов | D21: 180 | E21: 87.50
C22: Хлеб пшеничный | D22: 25 | E22: 58.75
C23: Хлеб ржаной | D23: 45 | E23: 89.10
B24: Полдник/төштән соңгы аш | C24: Катык | D24: 180 | E24: 91.86
C25: Булочка с сахаром | D25: 50 | E25: 170.67
B26: Ужин/кичке аш | C26: Запеканка творожная с повидлом | D26: 120/30 | E26: 418.50
C27: Напиок из шиповника | D27: 180/5 | E27: 24.10
D28: 152,36 руб | E28: =E27+E26+E25+E24+E23+E22+E20+E19+E18+E17+E16+E15+E14+E13 -> 1727.72

Sheet 6 мая (hidden)
B2: Согласно контракту
B3: №2024.617
B4: от 23.12.2023 г.
C7: 6 день
B9: Д/сад | C9: МБДОУ "ЦРР-д/с № 22"Алсу" | D9: День | E9: 2024-05-06
B11: 10 | C11: Блюдо | D11: С 3 лет | E11: до 7 лет
D12: грамм | E12: ккал
B13: Завтрак/иртәнге аш | C13: Каша пшенная молочная с маслом сливочным | D13: 180/3 | E13: 208.76
C14: Чай с молоком и сахаром | D14: 180/6 | E14: 75.76
C15: Бутерброд с маслом сливочным | D15: 30/5 | E15: 111.60
B16: 09.00 | C16: Сок | D16: 180 | E16: 94.4
B17: Обед/төшке аш | C17: Салат картофельный с морковуью и кукурузой к/с | D17: 60 | E17: 24.24
C18: Суп из овощей на курином б-не, с мясными фрикадельками, со сметаной | D18: 180/11/7 | E18: 101.49
C19: Ежики куриные в сметанно-томатномном соусе | D19: 50/25 | E19: 123.03
C20: вермишель отварной | D20: 130 | E20: 135.46
C21: Напиток из сухофруктов | D21: 180 | E21: 87.50
C22: Хлеб пшеничный | D22: 25 | E22: 58.75
C23: Хлеб ржаной | D23: 45 | E23: 89.10
B24: Полдник/төштән соңгы аш | C24: Катык | D24: 180 | E24: 91.86
C25: Булочка с сахаром | D25: 50 | E25: 170.67
B26: Ужин/кичке аш | C26: Запеканка творожная с повидлом | D26: 120/30 | E26: 418.50
C27: Напиок из шиповника | D27: 180/5 | E27: 24.10
D28: 152,36 руб | E28: =E27+E26+E25+E24+E23+E22+E20+E19+E18+E17+E16+E15+E14+E13 -> 1727.72

Sheet 2 июля (hidden)
B2: Согласно контракту
B3: №2024.617
B4: от 23.12.2023 г.
C6: 7 день
B9: Д/сад | C9: МБДОУ "ЦРР-д/с № 22"Алсу"
B11: 10 | C11: Блюдо | D11: С 3 лет | E11: до 7 лет
D12: грамм | E12: ккал
B13: Завтрак/иртәнге аш | C13: Каша кукурузная молочная с маслом сливочным | D13: 180/5 | E13: 274.16
C14: Кофейный напиток с молоком | D14: 180 | E14: 42.67
C15: Бутерброд с маслом сливочным | D15: 30/5 | E15: 111.60
C16: Сыр порционно | D16: 10 | E16: 34.33
B17: 09.00 | C17: Сок | D17: 180 | E17: 94.4
B18: Обед/төшке аш | C18: Салат из белокачанной капусты | D18: 60 | E18: 53.88
C19: Суп картофельный с клецками на мясном б-не с мясом | D19: 180/10 | E19: 121.66
C20: Гуляш из отварной говядины | D20: 40/40 | E20: 131.20
C21: Пюре картофельное | D21: 140 | E21: 128.10
C22: Компот из свежих фруктов | D22: 180 | E22: 55.26
C23: Хлеб пшеничный | D23: 25 | E23: 58.75
C24: Хлеб ржаной | D24: 45 | E24: 89.10
B25: Полдник/төштән соңгы аш | C25: Кефир | D25: 180 | E25: 90.00
C26: мармелад | D26: 10 | E26: 83.00
B27: Ужин/кичке аш | C27: Биточки-рубленные из рыбы | D27: 70 | E27: 124.60
C28: Каша гречневая рассыпчатая с овощами с маслом сливочным | D28: 130/3 | E28: 181.83
C29: Чай с сахаром и лимоном | D29: 180/6/7 | E29: 26.48
C30: Хлеб пшеничный | D30: 30 | E30: 70.50
D31: 152,36 руб | E31: =E29+E27+E26+E25+E24+E23+E21+E20+E19+E18+E17+E15+E14+E13 -> 1429.60

Sheet Лист24 (hidden)

Sheet 3 июля (hidden)
B2: Согласно контракту
B3: №2024.617
B4: от 23.12.2023 г.
C7: 8 день
B9: Д/сад | C9: МБДОУ "ЦРР-д/с № 22"Алсу"
B11: 10 | C11: Блюдо | D11: С 3 лет | E11: до 7 лет
D12: грамм | E12: ккал
B13: Завтрак/иртәнге аш | C13: Каша манная молочная с маслом сливочным | D13: 180/5 | E13: 199.50
C14: Какао с молоком | D14: 180/6 | E14: 58.83
C15: Бутерброд с маслом сливочным | D15: 30/5 | E15: 111.60
B16: 09.00 | C16: Сок | D16: 180 | E16: 96.0
B17: Обед/төшке аш | C17: Салат из моркови | D17: 60 | E17: 62.34
C18: Щи со свежей капустой с картофелем на курином б-не, с куриными фрикадельками и со сметаной | D18: 180/11/7 | E18: 104.59
C19: Биточки домашние | D19: 70 | E19: 225.40
C20: Рис отварной рассыпчатый с маслом сливочным | D20: 130/20 | E20: 192.01
C21: Компот из изюма | D21: 180 | E21: 62.10
C22: Хлеб пшеничный | D22: 25 | E22: 58.75
C23: Хлеб ржаной | D23: 45 | E23: 89.10
B24: Полдник/төштән соңгы аш | C24: Молоко кипяченое | D24: 180 | E24: 96.30
C25: Кондитерские изделия (печенье) | D25: 20 | E25: 90.20
B26: Ужин/кичке аш | C26: Омлет натуральный | D26: 150 | E26: 335.23
C27: Чай с сахаром | D27: 180/6 | E27: 24.10
C28: Хлеб пшеничный | D28: 30 | E28: 70.50
D29: 152,36 руб | E29: =E27+E26+E25+E24+E23+E22+E20+E19+E18+E17+E16+E15+E14+E13 -> 1743.95

Sheet 11 апр. (hidden)
B2: Согласно контракту
B3: №2024.617
B4: от 23.12.2023 г.
C6: 10 день
B9: Д/сад | C9: МБДОУ "ЦРР-д/с № 22"Алсу" | D9: День | E9: 2024-04-11
B11: 10 | C11: Блюдо | D11: С 3 лет | E11: до 7 лет
D12: грамм | E12: ккал
B13: Завтрак/иртәнге аш | C13: Каша геркулесовая молочная с маслом сливочным | D13: 180/5 | E13: 251.91
C14: Кофейный напиток с молоком | D14: 180/6 | E14: 42.67
C15: Бутерброд с маслом сливочным | D15: 30/5 | E15: 111.60
B16: 09.00 | C16: апельсин | D16: 100 | E16: 47.0
B17: Обед/төшке аш | C17: Салат из свеклы с сыром | D17: 60 | E17: 78.42
C18: Рассольник ленинградский с куриными фрикадельками, со сметаной | D18: 180/11/7 | E18: 117.51
C19: Котлеты рыбные с маслом сливочным | D19: 70/3 | E19: 144.36
C20: Макаронные изделия отварные с овощами | D20: 130 | E20: 163.28
C21: Кисель | D21: 180 | E21: 75.24
C22: хлеб пшеничный | D22: 25 | E22: 58.75
C23: Хлеб ржаной | D23: 45 | E23: 89.10
B24: Полдник/төштән соңгы аш | C24: Молоко кипяченое | D24: 180 | E24: 96.30
C25: Кондитерские изделия (печенье) | D25: 20 | E25: 90.20
B26: Ужин/кичке аш | C26: Капуста тушеная с мясом | D26: 180 | E26: 250.30
C27: Напиток из шиповника | D27: 180/6 | E27: 79.38
C28: Хлеб пшеничный | D28: 30 | E28: 70.50
D29: 152,36 руб | E29: =E28+E27+E26+E25+E24+E23+E22+E21+E20+E19+E18+E17+E16+E15+E14+E13 -> 1766.52

Sheet 12 апр. (hidden)
B2: Согласно контракту
B3: №2024.617
B4: от 23.12.2023 г.
C7: 1 день
B9: Д/сад | C9: МБДОУ "ЦРР-д/с № 22"Алсу" | D9: День | E9: 2024-04-12
B11: 10 | C11: Блюдо | D11: С 3 лет | E11: до 7 лет
D12: грамм | E12: ккал
B13: Завтрак/иртәнге аш | C13: Каша Дружба молочная с маслом сливочным | D13: 180/5 | E13: 207.60
C14: Кофейный напиток с молоком | D14: 180/6 | E14: 42.67
C15: Бутерброд с маслом сливочным | D15: 30/5 | E15: 111.60
B16: 09.00 | C16: Яблоко | D16: 100 | E16: 47.0
B17: Обед/төшке аш | C17: Икра кабачковая | D17: 50 | E17: 34.80
C18: Суп вермишелевый с картофелем с мясными фрикадельками | D18: 180/15 | E18: 114.56
C19: Котлеты рубленные из говядины | D19: 70 | E19: 211.06
C20: Каша гречневая вязкая с маслом сливочным | D20: 130/3 | E20: 145.86
C21: Напиток из сухофруктов | D21: 180 | E21: 68.18
C22: Хлеб ржаной | D22: 45 | E22: 89.10
C23: Хлеб пшеничный | D23: 25 | E23: 58.75
B24: Полдник/төштән соңгы аш | C24: Кефир | D24: 180 | E24: 90.00
C25: Вафли | D25: 20 | E25: 192.00
B26: Ужин/кичке аш | C26: Котлеты рыбные | D26: 70 | E26: 124.56
C27: Пюре картофельное | D27: 140 | E27: 128.10
C28: Чай с сахаром | D28: 180/6 | E28: 24.10
C29: Хлеб пшеничный | D29: 30 | E29: 70.50
D30: 152,36 руб | E30: =E29+E28+E27+E26+E25+E24+E23+E22+E21+E20+E19+E18+E17+E16+E15+E14+E13 -> 1760.44

Sheet 15 апр. (hidden)
B2: Согласно контракту
B3: №2024.617
B4: от 23.12.2023 г.
C6: 2 день
B9: Д/сад | C9: МБДОУ "ЦРР-д/с № 22"Алсу" | D9: День | E9: 2024-04-15
B11: 10 | C11: Блюдо | D11: С 3 лет | E11: до 7 лет
D12: грамм | E12: ккал
B13: Завтрак/иртәнге аш | C13: Каша полбяная молочная с маслом сливочным | D13: 180/3 | E13: 202.64
C14: какао с молоком | D14: 180 | E14: 58.83
C15: Бутерброд с сыром, маслом сливочным | D15: 30/5/5 | E15: 128.77
B16: 09.00 | C16: Сок | D16: 180 | E16: 94.4
B17: Обед/төшке аш | C17: Салат из картофеля с солеными огурцами | D17: 60 | E17: 66.84
C18: Борщ со свежей капустой, картофелем на курином б-не, с куриными фрикадельками, со сметаной | D18: 180/10/7 | E18: 106.63
C19: Фрикадельки куриные в молочном соусе | D19: 50/25 | E19: 136.30
C20: Макароны отварны с маслом сливочным | D20: 130/3 | E20: 155.22
C21: Компот из свежих яблок | D21: 180 | E21: 55.26
C22: Хлеб пшеничный | D22: 25 | E22: 58.75
C23: Хлеб ржаной | D23: 45 | E23: 89.10
B24: Полдник/төштән соңгы аш | C24: Ряженка | D24: 180 | E24: 91.80
C25: Булочка дорожная | D25: 50 | E25: 165.50
B26: Ужин/кичке аш | C26: Запеканка творожная с повидлом | D26: 120/30 | E26: 418.50
C27: Чай с сахаром и лимоном | D27: 180/6/7 | E27: 26.48
D28: 152,36 руб | E28: =E27+E26+E25+E24+E23+E22+E21+E20+E18+E19+E17+E16+E15+E14 -> 1652.38

Sheet 13 мая (hidden)
B2: Согласно контракту
B3: №2024.617
B4: от 23.12.2023 г.
C6: 3 день
B9: Д/сад | C9: МБДОУ "ЦРР-д/с № 22"Алсу" | D9: День | E9: 2024-05-13
B11: 10 | C11: Блюдо | D11: С 3 лет | E11: до 7 лет
D12: грамм | E12: ккал
B13: Завтрак/иртәнге аш | C13: Каша кукурузная молочная с маслом сливочным | D13: 180/5 | E13: 274.16
C14: Чай с сахаром и молоком | D14: 180/6 | E14: 72.7
C15: Бутерброд с маслом сливочным | D15: 30/5 | E15: 111.60
B16: 09.00 | C16: Яблоко | D16: 100 | E16: 47.0
B17: Обед/төшке аш | C17: Салат из припущенной моркови с яблоками60 | D17: 60 | E17: 24.24
C18: Суп картофельный гороховый на мясном б-не с мясом | D18: 180/10 | E18: 121.57
C19: плов из отварной говядины | D19: 200 | E19: 396.00
C20: Компот из урюка | D20: 180 | E20: 68.20
C21: Хлеб пшеничный | D21: 25 | E21: 58.75
C22: Хлеб ржаной | D22: 45 | E22: 89.10
B23: Полдник/төштән соңгы аш | C23: Молоко кипяченое | D23: 180 | E23: 75.24
C24: Печенье | D24: 20 | E24: 89.10
B25: Ужин/кичке аш | C25: Фрикадельки рыбный отварные | D25: 80 | E25: 88.00
C26: Картофель тушеный с овощами в соусе | D26: 140 | E26: 201.60
C27: Напиток из шиповника | D27: 180/6 | E27: 79.38
C28: Хлеб пшеничный | D28: 30 | E28: 70.50
D29: 152,36 руб | E29: =E28+E27+E26+E25+E24+E23+E22+E21+E20+E19+E18+E17+E16+E15+E14+E13 -> 1867.14

Sheet 14 мая (hidden)
B2: Согласно контракту
B3: №2024.617
B4: от 23.12.2023 г.
C7: 4 день
B9: Д/сад | C9: МБДОУ "ЦРР-д/с № 22"Алсу" | D9: День | E9: 2024-05-14
B11: 10 | C11: Блюдо | D11: С 3 лет | E11: до 7 лет
D12: грамм | E12: ккал
B13: Завтрак/иртәнге аш | C13: Каша ячневая молочная с маслом сливочным | D13: 180/3 | E13: 223.41
C14: Кофейный напиток с молоком | D14: 180/6 | E14: 42.67
C15: Бутерброд с маслом сливочным, повидлом | D15: 30/5/10 | E15: 119.80
B16: 09.00 | C16: Сок | D16: 180 | E16: 94.4
B17: Обед/төшке аш | C17: Салат из зеленого горошка к/с | D17: 50 | E17: 41.80
C18: Суп картофельный с пшенной крупой на курином б-не, с мясом птицы | D18: 180/10 | E18: 76.57
C19: птица, тушенная с соусе с овощами | D19: 200 | E19: 264.00
C20: Компот из изюма и яблок | D20: 180 | E20: 108.00
C21: Хлеб пшеничный | D21: 225 | E21: 58.75
C22: Хлеб ржаной | D22: 45 | E22: 89.10
B23: Полдник/төштән соңгы аш | C23: Кефир | D23: 180 | E23: 90.00
C24: Кондитерские изделия (печенье) | D24: 20 | E24: 90.20
B25: Ужин/кичке аш | C25: Омлет натуральный с сыром | D25: 150 | E25: 347.50
C26: Чай с сахаром | D26: 180/6 | E26: 24.10
C27: Хлеб пшеничный | D27: 30 | E27: 70.50
D28: 152,36 руб | E28: =E27+E26+E25+E24+E23+E22+E21+E20+E19+E18+E17+E16+E15+E14+E13 -> 1740.80

Sheet 15 мая (hidden)
B2: Согласно контракту
B3: №2024.617
B4: от 23.12.2023 г.
C6: 5 день
B9: Д/сад | C9: МБДОУ "ЦРР-д/с № 22"Алсу" | D9: День | E9: 2024-05-15
B11: 10 | C11: Блюдо | D11: С 3 лет | E11: до 7 лет
D12: грамм | E12: ккал
B13: Завтрак/иртәнге аш | C13: Суп молочный с геркулесовой крупой | D13: 200 | E13: 71.20
C14: какао с молоком | D14: 180 | E14: 58.83
C15: Бутерброд с сыром, маслом сливочным | D15: 30/5/5 | E15: 128.77
B16: 09.00 | C16: Сок | D16: 180 | E16: 94.4
B17: Обед/төшке аш | C17: Салат из свеклы отварной | D17: 50 | E17: 46.40
C18: Рассольник домашний на курином б-не, с куриными фрикадельками со сметаной | D18: 180/11/5 | E18: 119.17
C19: Запеканка картофельная с мясом птицы со сметанным соусом | D19: 150/30 | E19: 243.48
C20: Кисель | D20: 180 | E20: 75.24
C21: Хлеб пшеничный | D21: 25 | E21: 58.75
C22: Хлеб ржаной | D22: 45 | E22: 89.10
B23: Полдник/төштән соңгы аш | C23: Молоко кипяченое | D23: 180 | E23: 75.24
C24: Печенье | D24: 20 | E24: 89.10
B25: Ужин/кичке аш | C25: Эч-почмак с говядиной | D25: 100 | E25: 414.29
C26: Чай с сахаром и лимоном | D26: 180/6/7 | E26: 26.48
D27: 152,36 руб | E27: =E26+E25+E24+E23+E22+E21++E19+E18+E17+E16+E15+E14+E13 -> 1515.21

Sheet 16 мая (hidden)
B2: Согласно контракту
B3: №2024.617
B4: от 23.12.2023 г.
C7: 6 день
B9: Д/сад | C9: МБДОУ "ЦРР-д/с № 22"Алсу" | D9: День | E9: 2024-05-16
B11: 10 | C11: Блюдо | D11: С 3 лет | E11: до 7 лет
D12: грамм | E12: ккал
B13: Завтрак/иртәнге аш | C13: Каша пшенная молочная с маслом сливочным | D13: 180/3 | E13: 208.76
C14: Чай с молоком и сахаром | D14: 180/6 | E14: 75.76
C15: Бутерброд с маслом сливочным | D15: 30/5 | E15: 111.60
B16: 09.00 | C16: Сок | D16: 180 | E16: 94.4
B17: Обед/төшке аш | C17: Салат картофельный с морковуью и кукурузой к/с | D17: 60 | E17: 24.24
C18: Суп из овощей на курином б-не, с мясными фрикадельками, со сметаной | D18: 180/11/7 | E18: 101.49
C19: Ежики куриные в сметанно-томатномном соусе | D19: 50/25 | E19: 123.03
C20: вермишель отварной | D20: 130 | E20: 135.46
C21: Напиток из сухофруктов | D21: 180 | E21: 87.50
C22: Хлеб пшеничный | D22: 25 | E22: 58.75
C23: Хлеб ржаной | D23: 45 | E23: 89.10
B24: Полдник/төштән соңгы аш | C24: Катык | D24: 180 | E24: 91.86
C25: Булочка с сахаром | D25: 50 | E25: 170.67
B26: Ужин/кичке аш | C26: Запеканка творожная с повидлом | D26: 120/30 | E26: 418.50
C27: Напиок из шиповника | D27: 180/5 | E27: 24.10
D28: 152,36 руб | E28: =E27+E26+E25+E24+E23+E22+E20+E19+E18+E17+E16+E15+E14+E13 -> 1727.72

Sheet 17 мая (hidden)
B2: Согласно контракту
B3: №2024.617
B4: от 23.12.2023 г.
C6: 7 день
B9: Д/сад | C9: МБДОУ "ЦРР-д/с № 22"Алсу" | D9: День | E9: 2024-05-17
B11: 10 | C11: Блюдо | D11: С 3 лет | E11: до 7 лет
D12: грамм | E12: ккал
B13: Завтрак/иртәнге аш | C13: Каша кукурузная молочная с маслом сливочным | D13: 180/5 | E13: 274.16
C14: Кофейный напиток с молоком | D14: 180 | E14: 42.67
C15: Бутерброд с маслом сливочным | D15: 30/5 | E15: 111.60
C16: Сыр порционно | D16: 10 | E16: 34.33
B17: 09.00 | C17: Сок | D17: 180 | E17: 94.4
B18: Обед/төшке аш | C18: Салат из квашенной капусты | D18: 60 | E18: 53.88
C19: Суп картофельный с клецками на мясном б-не с мясом | D19: 180/10 | E19: 121.66
C20: Гуляш из отварной говядины | D20: 40/40 | E20: 131.20
C21: Пюре картофельное | D21: 140 | E21: 128.10
C22: Компот из свежих фруктов | D22: 180 | E22: 55.26
C23: Хлеб пшеничный | D23: 25 | E23: 58.75
C24: Хлеб ржаной | D24: 45 | E24: 89.10
B25: Полдник/төштән соңгы аш | C25: Кефир | D25: 180 | E25: 90.00
C26: мармелад | D26: 10 | E26: 83.00
B27: Ужин/кичке аш | C27: Биточки-рубленные из рыбы | D27: 70 | E27: 124.60
C28: Каша гречневая рассыпчатая с овощами с маслом сливочным | D28: 130/3 | E28: 181.83
C29: Чай с сахаром и лимоном | D29: 180/6/7 | E29: 26.48
C30: Хлеб пшеничный | D30: 30 | E30: 70.50
D31: 152,36 руб | E31: =E29+E27+E26+E25+E24+E23+E21+E20+E19+E18+E17+E15+E14+E13 -> 1429.60

Sheet 20 мая (hidden)
B2: Согласно контракту
B3: №2024.617
B4: от 23.12.2023 г.
C7: 8 день
B9: Д/сад | C9: МБДОУ "ЦРР-д/с № 22"Алсу" | D9: День | E9: 2024-05-20
B11: 10 | C11: Блюдо | D11: С 3 лет | E11: до 7 лет
D12: грамм | E12: ккал
B13: Завтрак/иртәнге аш | C13: Каша манная молочная с маслом сливочным | D13: 180/5 | E13: 199.50
C14: Какао с молоком | D14: 180/6 | E14: 58.83
C15: Бутерброд с маслом сливочным | D15: 30/5 | E15: 111.60
B16: 09.00 | C16: Апельсин | D16: 100 | E16: 47.0
B17: Обед/төшке аш | C17: Икра кабачковая | D17: 50 | E17: 62.34
C18: Щи со свежей капустой с картофелем на курином б-не, с куриными фрикадельками и со сметаной | D18: 180/11/7 | E18: 104.59
C19: Биточки домашние | D19: 70 | E19: 225.40
C20: Рис отварной рассыпчатый с маслом сливочным | D20: 130/20 | E20: 192.01
C21: Компот из изюма | D21: 180 | E21: 62.10
C22: Хлеб пшеничный | D22: 25 | E22: 58.75
C23: Хлеб ржаной | D23: 45 | E23: 89.10
B24: Полдник/төштән соңгы аш | C24: Молоко кипяченое | D24: 180 | E24: 96.30
C25: Кондитерские изделия (печенье) | D25: 20 | E25: 90.20
B26: Ужин/кичке аш | C26: Омлет натуральный | D26: 150 | E26: 335.23
C27: Чай с сахаром | D27: 180/6 | E27: 24.10
C28: Хлеб пшеничный | D28: 30 | E28: 70.50
D29: 152,36 руб | E29: =E27+E26+E25+E24+E23+E22+E20+E19+E18+E17+E16+E15+E14+E13 -> 1694.95

Sheet 1 августа (hidden)
B2: Согласно контракту
B3: №2024.617
B4: от 23.12.2023 г.
C7: 9 день
B9: Д/сад | C9: МБДОУ "ЦРР-д/с № 22"Алсу"
B11: 10 | C11: Блюдо | D11: С 3 лет | E11: до 7 лет
D12: грамм | E12: ккал
B13: Завтрак/иртәнге аш | C13: Каша пшеничная молочная с маслом сливочным | D13: 180/3 | E13: 241.16
C14: Чай с молоком и сахаром | D14: 180/6 | E14: 75.76
C15: Бутерброд с сыром, маслом сливочным | D15: 30/5/5 | E15: 128.77
B16: 09.00 | C16: Яблоко | D16: 100 | E16: 47.0
B17: Обед/төшке аш | C17: огурцы соленые | D17: 50 | E17: 53.88
C18: суп лапша домашняя на курином б-не, с мясом птицы | D18: 180/10 | E18: 114.78
C19: Жаркое из птицы по домашнему | D19: 180 | E19: 303.43
C20: Напиток из сухофруктов | D20: 180 | E20: 87.50
C21: Хлеб пшеничный | D21: 25 | E21: 58.75
C22: Хлеб ржаной | D22: 45 | E22: 89.10
B23: Полдник/төштән соңгы аш | C23: кисломолочный напиток | D23: 180 | E23: 96.30
C24: Кондитерские изделия (печенье) | D24: 20 | E24: 90.20
B25: Ужин/кичке аш | C25: Ватрушка с творогом | D25: 90 | E25: 404.05
C26: чай с сахаром и лимоном | D26: 180/6/7 | E26: 26.48
D28: 152,36 руб | E28: =E26+E25+E24+E23+E22+E21+E20+E19+E18+E17+E16+E15+E14+E13 -> 1817.16

Sheet 2 августа (hidden)
B2: Согласно контракту
B3: №2024.617
B4: от 23.12.2023 г.
C6: 10 день
B9: Д/сад | C9: МБДОУ "ЦРР-д/с № 22"Алсу"
B11: 10 | C11: Блюдо | D11: С 3 лет | E11: до 7 лет
D12: грамм | E12: ккал
B13: Завтрак/иртәнге аш | C13: Каша геркулесовая молочная с маслом сливочным | D13: 180/5 | E13: 251.91
C14: Кофейный напиток с молоком | D14: 180/6 | E14: 42.67
C15: Бутерброд с маслом сливочным | D15: 30/5 | E15: 111.60
B16: 09.00 | C16: Сок | D16: 180 | E16: 96.0
B17: Обед/төшке аш | C17: Салат из свеклы с сыром | D17: 60 | E17: 78.42
C18: Рассольник ленинградский с куриными фрикадельками, со сметаной | D18: 180/11/7 | E18: 117.51
C19: Котлеты рыбные с маслом сливочным | D19: 70/3 | E19: 144.36
C20: Макаронные изделия отварные с овощами | D20: 130 | E20: 163.28
C21: Кисель | D21: 180 | E21: 75.24
C22: хлеб пшеничный | D22: 25 | E22: 58.75
C23: Хлеб ржаной | D23: 45 | E23: 89.10
B24: Полдник/төштән соңгы аш | C24: Молоко кипяченое | D24: 180 | E24: 96.30
C25: Кондитерские изделия (печенье) | D25: 20 | E25: 90.20
B26: Ужин/кичке аш | C26: Капуста тушеная с мясом | D26: 180 | E26: 250.30
C27: Напиток из шиповника | D27: 180/6 | E27: 79.38
C28: Хлеб пшеничный | D28: 30 | E28: 70.50
D29: 152,36 руб | E29: =E28+E27+E26+E25+E24+E23+E22+E21+E20+E19+E18+E17+E16+E15+E14+E13 -> 1815.52

Sheet 01 июля (hidden)
B1: Согласно контракту
B2: №2024.617
B3: от 23.12.2023 г.
C5: 2 день
B8: Д/сад | C8: МБДОУ "ЦРР-д/с № 22"Алсу"
B10: 10 | C10: Блюдо | D10: С 3 лет | E10: до 7 лет
D11: грамм | E11: ккал
B12: Завтрак/иртәнге аш | C12: Каша полбяная молочная с маслом сливочным | D12: 180/3 | E12: 202.64
C13: какао с молоком | D13: 180 | E13: 58.83
C14: Бутерброд с сыром, маслом сливочным | D14: 30/10/5 | E14: 146.10
B15: 09.00 | C15: Сок | D15: 180 | E15: 76.0
B16: Обед/төшке аш | C16: Салат из картофеля с солеными огурцами | D16: 60 | E16: 66.84
C17: Борщ со свежей капустой, картофелем со сметаной | D17: 180/7 | E17: 87.64
C18: Тефтели куриные запеченные в сметанно-томатном соусе | D18: 50/25 | E18: 112.50
C19: Макароны отварны с маслом сливочным | D19: 130/3 | E19: 155.22
C20: Компот из свежих яблок | D20: 180 | E20: 55.26
C21: Хлеб пшеничный | D21: 25 | E21: 58.75
C22: Хлеб ржаной | D22: 45 | E22: 89.10
B23: Полдник/төштән соңгы аш | C23: Молоко кипяченное | D23: 180 | E23: 96.30
C24: Печенье | D24: 20 | E24: 90.20
B25: Ужин/кичке аш | C25: Запеканка творожная с повидлом | D25: 120/30 | E25: 418.50
C26: Чай с сахаром и лимоном | D26: 180/6/7 | E26: 26.48
D27: 170,64 | E27: =E26+E25+E12+E24+E23+E22+E21+E20+E19+E17+E18+E16+E15+E14+E13 -> 1740.36

Sheet 02 июля (hidden)
B2: Согласно контракту
B3: №2024.617
B4: от 23.12.2023 г.
C6: 3 день
B9: Д/сад | C9: МБДОУ "ЦРР-д/с № 22"Алсу"
B11: 10 | C11: Блюдо | D11: С 3 лет | E11: до 7 лет
D12: грамм | E12: ккал
B13: Завтрак/иртәнге аш | C13: Каша манная молочная с маслом сливочным | D13: 180/3 | E13: 186.30
C14: Чай с сахаром и молоком | D14: 180/6 | E14: 72.7
C15: Бутерброд с маслом сливочным | D15: 30/5 | E15: 111.60
B16: 09.00 | C16: Фрукты | D16: 100 | E16: 47.0
B17: Обед/төшке аш | C17: Огурцы порционно | D17: 50 | E17: 42.48
C18: Суп картофельный гороховый на б-не из индейки | D18: 180 | E18: 106.74
C19: плов из отварной индейки | D19: 200 | E19: 290.64
C20: Компот из урюка | D20: 180 | E20: 68.20
C21: Хлеб пшеничный | D21: 20 | E21: 47.00
C22: Хлеб ржаной | D22: 45 | E22: 89.10
B23: Полдник/төштән соңгы аш | C23: Ряженка | D23: 180 | E23: 91.80
C24: Булочка дорожная | D24: 50 | E24: 165.50
B25: Ужин/кичке аш | C25: Фрикадельки рыбный отварные | D25: 80 | E25: 88.00
C26: Картофель запеченный | D26: 140 | E26: 212.80
C27: Напиток из шиповника | D27: 180/6 | E27: 79.38
C28: Хлеб пшеничный | D28: 30 | E28: 70.50
D29: 170,64 руб | E29: 1770.11

Sheet 03 июля (hidden)
B2: Согласно контракту
B3: №2024.617
B4: от 23.12.2023 г.
C7: 4 день
B9: Д/сад | C9: МБДОУ "ЦРР-д/с № 22"Алсу"
B11: 10 | C11: Блюдо | D11: С 3 лет | E11: до 7 лет
D12: грамм | E12: ккал
B13: Завтрак/иртәнге аш | C13: Каша ячневая молочная с маслом сливочным | D13: 180/3 | E13: 223.41
C14: Кофейный напиток с молоком | D14: 180/6 | E14: 42.67
C15: Бутер с маслом слив,с повидлом | D15: 30/5/10 | E15: 119.80
B16: 09.00 | C16: Сок | D16: 100 | E16: 76.0
B17: Обед/төшке аш | C17: Салат из зеленого горошка | D17: 50 | E17: 41.80
C18: Суп картофельный с пшенной крупой на курином б-не | D18: 180 | E18: 61.74
C19: птица, тушенная с соусе с овощами | D19: 200 | E19: 264.00
C20: Компот из сухофруктов | D20: 180 | E20: 68.18
C21: Хлеб пшеничный | D21: 25 | E21: 58.75
C22: Хлеб ржаной | D22: 45 | E22: 89.10
B23: Полдник/төштән соңгы аш | C23: Кефир | D23: 180 | E23: 102.00
B24: Ужин/кичке аш | C24: Омлет натуральный с сыром | D24: 150 | E24: 289.66
C25: Чай с сахаром | D25: 180/6 | E25: 24.10
C26: Хлеб пшеничный | D26: 30 | E26: 70.50
D27: 170,64руб | E27: =E26+E25+E24+E23+E22+E21+E20+E19+E18+E17+E16+E15+E14+E13 -> 1531.71

Sheet 01 августа (hidden)
B2: Согласно контракту
B3: №2024.617
B4: от 23.12.2023 г.
C6: 5 день
B9: Д/сад | C9: МБДОУ "ЦРР-д/с № 22"Алсу"
B11: 10 | C11: Блюдо | D11: С 3 лет | E11: до 7 лет
D12: грамм | E12: ккал
B13: Завтрак/иртәнге аш | C13: Суп молочный с вермишелью | D13: 200 | E13: 120.00
C14: какао с молоком | D14: 180 | E14: 58.83
C15: Бутерброд с сыром, маслом сливочным | D15: 30/10/5 | E15: 146.10
B16: 09.00 | C16: Яблоко | D16: 100 | E16: 47.0
B17: Обед/төшке аш | C17: Венегрет овощной | D17: 60 | E17: 75.06
C18: Суп из овощей с мясными фрикадельками,со сметаной | D18: 180/10/7 | E18: 106.12
C19: Котлеты рубленые из говядины | D19: 70 | E19: 211.06
C20: Каша гречневая рассыпчатая с овощами,с маслом слив | D20: 130/2 | E20: 141.96
C21: Компот из свежих яблок | D21: 180 | E21: 55.26
C22: Хлеб пшеничный | D22: 25 | E22: 58.75
C23: Хлеб ржаной | D23: 45 | E23: 89.10
B24: Полдник/төштән соңгы аш | C24: Катык | D24: 180 | E24: 91.80
C25: Мармелад | D25: 10 | E25: 83.00
B26: Ужин/кичке аш | C26: Элеш с птицей | D26: 100 | E26: 245.00
C27: Чай с сахаром и лимоном | D27: 180/6/7 | E27: 26.48
D28: 170,64 руб | E28: =E27+E26+E25+E24+E23+E22+E21+E20+E18+E13+E19+E17+E16+E15+E14 -> 1555.52

Sheet 1 сентября (hidden)
B2: Согласно контракту
B3: №2024.617
B4: от 23.12.2023 г.
C6: 6 день
B9: Д/сад | C9: МБДОУ "ЦРР-д/с № 22"Алсу"
B11: 10 | C11: Блюдо | D11: С 3 лет | E11: до 7 лет
D12: грамм | E12: ккал
B13: Завтрак/иртәнге аш | C13: Каша пшенная мол с маслом сливочным | D13: 180/30 | E13: 208.76
C14: Чай с молоком,с сахаром | D14: 180/6 | E14: 72.7
C15: Бутерброд с маслом сливочным | D15: 30/5 | E15: 111.60
B16: 09.00 | C16: Сок | D16: 180 | E16: 76.0
B17: Обед/төшке аш | C17: Салат из зеленого горошка | D17: 50 | E17: 34.80
C18: Рассольник Лениноградский,со сметаной | D18: 180/7 | E18: 88.56
C19: Тефтели куриные запеченные в сметанно-томатном соусе | D19: 50/25 | E19: 112.50
C20: Вермишель отворная | D20: 130 | E20: 135.46
C21: Напиток из сухофруктов | D21: 180 | E21: 68.18
C22: Хлеб пшеничный | D22: 25 | E22: 58.75
C23: Хлеб ржаной | D23: 45 | E23: 89.10
B24: Полдник/төштән соңгы аш | C24: Ряженка | D24: 180 | E24: 96.30
C25: Печенье | D25: 20 | E25: 90.20
B26: Ужин/кичке аш | C26: Сырники творожные со сгущ молоком | D26: 120/30 | E26: 390.40
C27: Напиток из шиповника | D27: 180/6 | E27: 79.38
D28: 170,64 руб | E28: =E27+E26+E25+E24+E23+E22+E21+E20+E19+E18+E17+E16+E15+E14+E13 -> 1712.69

Sheet 02 сентября (hidden)
B2: Согласно контракту
B3: №2024.617
B4: от 23.12.2023 г.
C7: 7 день
B9: Д/сад | C9: МБДОУ "ЦРР-д/с № 22"Алсу"
B11: 10 | C11: Блюдо | D11: С 3 лет | E11: до 7 лет
D12: грамм | E12: ккал
B13: Завтрак/иртәнге аш | C13: Каша ячневая молочная с маслом слив | D13: 180/3 | E13: 223.41
C14: Кофейный напиток с молоком | D14: 180/6 | E14: 42.67
C15: Бутерброд с сыром, с маслом слив | D15: 30/10/5 | E15: 146.10
B16: 09.00 | C16: Яблоки | D16: 100 | E16: 47.0
B17: Обед/төшке аш | C17: Огурцы свежие порционно | D17: 60 | E17: 6.00
C18: Суп картофельный с клецками на б-не из индейки | D18: 180 | E18: 120.08
C19: Гуляш из отварной индейки | D19: 40/40 | E19: 136.31
C20: Каша перловая рассып с овощами и маслом | D20: 130 | E20: 137.68
C21: Напиток из яблок | D21: 180 | E21: 55.26
C22: Хлеб пшеничный | D22: 25 | E22: 58.75
C23: Хлеб ржаной | D23: 45 | E23: 89.10
B24: Полдник/төштән соңгы аш | C24: Кефир | D24: 180 | E24: 90.00
C25: Пряник | D25: 30 | E25: 128.10
B26: Ужин/кичке аш | C26: Омлет натуральный | D26: 150 | E26: 335.23
C27: Чай с сахаром и лимоном | D27: 180/6/7 | E27: 26.48
D28: 170,64 руб | E28: 1647.01

Sheet 1 октября (hidden)
B2: Согласно контракту
B3: №2024.617
B4: от 23.12.2023 г.
C7: 8 день
B9: Д/сад | C9: МБДОУ "ЦРР-д/с № 22"Алсу"
B11: 10 | C11: Блюдо | D11: С 3 лет | E11: до 7 лет
D12: грамм | E12: ккал
B13: Завтрак/иртәнге аш | C13: Каша манная молочная с маслом сливочным | D13: 180/5 | E13: 199.50
C14: Какао с молоком | D14: 180/6 | E14: 58.83
C15: Бутерброд с маслом сливочным | D15: 30/5 | E15: 111.60
B16: 09.00 | C16: Сок | D16: 180 | E16: 76.0
B17: Обед/төшке аш | C17: Свежие томаты порционно | D17: 60 | E17: 11.00
C18: Щи со свежей капустой с картофелем, со сметаной | D18: 180/11/7 | E18: 75.96
C19: Биточки домашние | D19: 70 | E19: 225.40
C20: Пюре гороховое | D20: 130 | E20: 196.94
C21: Компот из изюма | D21: 180 | E21: 62.10
C22: Хлеб пшеничный | D22: 25 | E22: 58.75
C23: Хлеб ржаной | D23: 45 | E23: 89.10
B24: Полдник/төштән соңгы аш | C24: Молоко кипяченое | D24: 180 | E24: 96.30
C25: Булочка с сахаром | D25: 35 | E25: 95.67
B26: Ужин/кичке аш | C26: Рыба тушенная с овощами | D26: 50/25 | E26: 245.23
C27: Рис отварной рассып-ый с масл слив | D27: 130/2 | E27: 192.01
C28: Чай с сахаром | D28: 180/6 | E28: 24.10
C29: Хлеб пшеничный | D29: 30 | E29: 70.50
D30: 170,64 руб | E30: =E29+E28+E26+E25+E24+E23+E22+E20+E19+E18+E17+E16+E15+E14+E13 -> 1634.88

Sheet 2 октября (hidden)
B2: Согласно контракту
B3: №2024.617
B4: от 23.12.2023 г.
C7: 9 день
B9: Д/сад | C9: МБДОУ "ЦРР-д/с № 22"Алсу"
B11: 10 | C11: Блюдо | D11: С 3 лет | E11: до 7 лет
D12: грамм | E12: ккал
B13: Завтрак/иртәнге аш | C13: Каша пшеничная молочная с маслом сливочным | D13: 180/3 | E13: 241.16
C14: Чай с молоком и сахаром | D14: 180/6 | E14: 72.7
C15: Бутерброд с маслом сливочным | D15: 30/5 | E15: 111.60
B16: 09.00 | C16: Яблоко | D16: 100 | E16: 47.0
B17: Обед/төшке аш | C17: Салат из свежий капусты с яблоками | D17: 60 | E17: 54.06
C18: суп лапша домашняя на курином б-не, с мясом птицы | D18: 180/10 | E18: 114.78
C19: Жаркое из птицы по домашнему | D19: 180 | E19: 303.43
C20: Напиток из сухофруктов | D20: 180 | E20: 68.18
C21: Хлеб пшеничный | D21: 25 | E21: 58.75
C22: Хлеб ржаной | D22: 45 | E22: 89.10
B23: Полдник/төштән соңгы аш | C23: кисломолочный напиток | D23: 180 | E23: 91.80
B24: Ужин/кичке аш | C24: Ватрушка королевская | D24: 150 | E24: 404.00
C25: чай с сахаром и лимоном | D25: 180/6/7 | E25: 26.48
D27: 170,64 руб | E27: =E25+E24+E23+E22+E21+E20+E19+E18+E17+E16+E15+E14+E13 -> 1683.04

Sheet 3 октября (hidden)
B2: Согласно контракту
B3: №2024.617
B4: от 23.12.2023 г.
C6: 10 день
B9: Д/сад | C9: МБДОУ "ЦРР-д/с № 22"Алсу"
B11: 10 | C11: Блюдо | D11: С 3 лет | E11: до 7 лет
D12: грамм | E12: ккал
B13: Завтрак/иртәнге аш | C13: Каша геркулесовая молочная с маслом сливочным | D13: 180/5 | E13: 233.10
C14: Кофейный напиток с молоком | D14: 180/6 | E14: 42.67
C15: Бутербр с маслом слив, с сыром | D15: 30/5 | E15: 146.10
B16: 09.00 | C16: Сок | D16: 180 | E16: 76.0
B17: Обед/төшке аш | C17: Огурцы свежие порционно | D17: 50 | E17: 11.00
C18: Суп картофельный с рисовой крупой с мясными фрик,со сметаной | D18: 180/10/5 | E18: 79.60
C19: Котлеты рыбные с маслом сливочным | D19: 70/3 | E19: 144.36
C20: Макаронные изделия отварные с овощами | D20: 130 | E20: 163.28
C21: Кисель | D21: 180 | E21: 75.24
C22: хлеб пшеничный | D22: 25 | E22: 58.75
C23: Хлеб ржаной | D23: 45 | E23: 89.10
B24: Полдник/төштән соңгы аш | C24: Молоко кипяченое | D24: 180 | E24: 96.30
C25: Булочка Российская | D25: 35 | E25: 88.50
B26: Ужин/кичке аш | C26: Каша гречневая вязкая с мясом и овощами | D26: 180 | E26: 268.50
C27: Напиток из шиповника | D27: 180/6 | E27: 79.38
C28: Хлеб пшеничный | D28: 30 | E28: 70.50
D29: 170,64 руб | E29: =E28+E27+E26+E25+E24+E23+E22+E21+E20+E19+E18+E17+E16+E15+E14+E13 -> 1722.38

Sheet 1 ноября
B2: Согласно контракту
B3: №2024.617
B4: от 23.12.2023 г.
C7: 1 день
B9: Д/сад | C9: МБДОУ "Детский сад "Солнышко" с. Ямаши
B11: 10 | C11: Блюдо | D11: С 3 лет | E11: до 7 лет
D12: грамм | E12: ккал
B13: Завтрак/иртәнге аш | C13: Каша Дружба молочная с маслом сливочным | D13: 180/3 | E13: 225.00
C14: Кофейный напиток с молоком | D14: 180/6 | E14: 42.67
C15: Бутерброд с маслом сливочным | D15: 30/5 | E15: 111.60
B16: 09.00 | C16: Яблоко | D16: 100 | E16: 47.0
B17: Обед/төшке аш | C17: Кабачковая икра | D17: 50 | E17: 41.80
C18: Суп вермишелевый с картофелем с мясными фрикадельками | D18: 180/15 | E18: 114.56
C19: Голубцы ленивые со сметанно-томатным соусом | D19: 120/30 | E19: 201.98
C20: Напиток из сухофруктов | D20: 180 | E20: 68.18
C21: Хлеб ржаной | D21: 45 | E21: 89.10
C22: Хлеб пшеничный | D22: 25 | E22: 58.75
B23: Полдник/төштән соңгы аш | C23: Кефир | D23: 180 | E23: 90.00
C24: Вафли | D24: 20 | E24: 192.00
B25: Ужин/кичке аш | C25: Котлеты рыбные | D25: 70 | E25: 124.56
C26: Пюре картофельное | D26: 140 | E26: 128.10
C27: Чай с сахаром | D27: 180/6 | E27: 24.10
C28: Хлеб пшеничный | D28: 30 | E28: 70.50
D29: 170,64 руб | E29: =E28+E27+E26+E25+E24+E23+E22+E21+E20+E19+E18+E17+E16+E15+E14+E13 -> 1629.90

Sheet 5 ноября
B2: Согласно контракту
B3: №2024.617
B4: от 23.12.2023 г.
C6: 3 день
B9: Д/сад | C9: МБДОУ "Детский сад "Солнышко" с. Ямаши
B11: 10 | C11: Блюдо | D11: С 3 лет | E11: до 7 лет
D12: грамм | E12: ккал
B13: Завтрак/иртәнге аш | C13: Каша манная молочная с маслом сливочным | D13: 180/3 | E13: 186.30
C14: Чай с сахаром и молоком | D14: 180/6 | E14: 72.7
C15: Бутерброд с маслом сливочным | D15: 30/5 | E15: 111.60
B16: 09.00 | C16: Яблоко | D16: 100 | E16: 47.0
B17: Обед/төшке аш | C17: Салат из капусты с яблоками | D17: 50 | E17: 54.06
C18: Суп картофельный гороховый на б-не из индейки | D18: 180 | E18: 106.74
C19: плов из отварной индейки | D19: 200 | E19: 290.64
C20: Компот из урюка | D20: 180 | E20: 68.20
C21: Хлеб пшеничный | D21: 20 | E21: 47.00
C22: Хлеб ржаной | D22: 45 | E22: 89.10
B23: Полдник/төштән соңгы аш | C23: Ряженка | D23: 180 | E23: 91.80
C24: Булочка дорожная | D24: 50 | E24: 165.50
B25: Ужин/кичке аш | C25: Фрикадельки рыбный отварные | D25: 80 | E25: 88.00
C26: Картофель запеченнй | D26: 140 | E26: 212.80
C27: Напиток из шиповника | D27: 180/6 | E27: 79.38
C28: Хлеб пшеничный | D28: 30 | E28: 70.50
D29: 170,64 руб | E29: =E28+E27+E26+E25+E24+E23+E22+E21+E20+E19+E18+E17+E16+E15+E14+E13 -> 1781.32

Sheet 7 ноября
B1: Согласно контракту
B2: №2024.617
B3: от 23.12.2023 г.
C5: 5 день
B8: Д/сад | C8: МБДОУ "Детский сад "Солнышко" с. Ямаши
B10: 10 | C10: Блюдо | D10: С 3 лет | E10: до 7 лет
D11: грамм | E11: ккал
B12: Завтрак/иртәнге аш | C12: Суп молочный с вермишелью | D12: 200 | E12: 120.00
C13: какао с молоком | D13: 180 | E13: 58.83
C14: Бутерброд с сыром, маслом сливочным | D14: 30/10/5 | E14: 146.10
B15: 09.00 | C15: Яблоко | D15: 100 | E15: 47.0
B16: Обед/төшке аш | C16: Венегрет овощной | D16: 60 | E16: 75.06
C17: Суп из овощей с мясными фрикадельками,со сметаной | D17: 180/10/7 | E17: 106.12
C18: Котлеты рубленые из говядины | D18: 70 | E18: 211.06
C19: Каша гречневая рассыпчатая с овощами,с маслом слив | D19: 130/2 | E19: 141.96
C20: Компот из свежих яблок | D20: 180 | E20: 55.26
C21: Хлеб пшеничный | D21: 25 | E21: 58.75
C22: Хлеб ржаной | D22: 45 | E22: 89.10
B23: Полдник/төштән соңгы аш | C23: Ацид.напиток | D23: 180 | E23: 91.80
C24: Мармелад | D24: 10 | E24: 83.00
B25: Ужин/кичке аш | C25: Элеш с птицей | D25: 100 | E25: 245.00
C26: Чай с сахаром и лимоном | D26: 180/6/7 | E26: 26.48
D27: 170,64 руб | E27: =E26+E25+E24+E23+E22+E21+E20+E19+E17+E12+E18+E16+E15+E14+E13 -> 1555.52

Sheet 10 ноября
B1: Согласно контракту
B2: №2024.617
B3: от 23.12.2023 г.
C6: 6 день
B8: Д/сад | C8: МБДОУ "Детский сад "Солнышко" с. Ямаши
B10: 10 | C10: Блюдо | D10: С 3 лет | E10: до 7 лет
D11: грамм | E11: ккал
B12: Завтрак/иртәнге аш | C12: Каша манная молочная с маслом сливочным | D12: 180/3 | E12: 186.30
C13: Чай с молоком и сахаром | D13: 180/6 | E13: 75.76
C14: Бутерброд с маслом сливочным | D14: 30/5 | E14: 111.68
B15: 09.00 | C15: Сок | D15: 200 | E15: 84.8
B16: Обед/төшке аш | C16: Салат из кукурузы к/с | D16: 50 | E16: 49.65
C17: Суп вермишелевый с картофелем с куриными фрикадельками | D17: 180/10 | E17: 114.56
C18: Голубцы ленивые со сметанно-томатным соусом | D18: 120/30 | E18: 201.98
C19: Напиток из сухофруктов | D19: 180 | E19: 71.52
C20: Хлеб ржаной | D20: 45 | E20: 89.19
B21: Полдник/төштән соңгы аш | C21: Катык | D21: 180 | E21: 92.00
C22: Печенье | D22: 40 | E22: 166.80
B23: Ужин/кичке аш | C23: Омлет | D23: 150 | E23: 289.66
C24: Хлеб пшеничный | D24: 25 | E24: 58.81
C25: Чай с сахаром,с яблоками | D25: 180/6 | E25: 28.70
D26: 170,64 руб | E26: МБДОУ "Детский сад "Солнышко" с. Ямаши

Sheet 11 ноября
B1: Согласно контракту
B2: №2024.617
B3: от 23.12.2023 г.
C5: 7 день
B8: Д/сад | C8: МБДОУ "Детский сад "Солнышко" с. Ямаши
B10: 10 | C10: Блюдо | D10: С 3 лет | E10: до 7 лет
D11: грамм | E11: ккал
B12: Завтрак/иртәнге аш | C12: Каша ячневая молочная с маслом слив | D12: 180/3 | E12: 214.80
C13: Кофейный напиток с молоком | D13: 180/6 | E13: 74.58
C14: Бутерброд с маслом слив и сыр | D14: 30/5/5 | E14: 128.77
B15: 09.00 | C15: Яблоко | D15: 100 | E15: 47.0
B16: Обед/төшке аш | C16: Салат из квашенной капусты | D16: 50 | E16: 42.85
C17: Борщ со свежей капустой с картофелем на курином бульоне со сметаной | D17: 180/7 | E17: 85.97
C18: Гуляш из отварной птицы | D18: 40/40 | E18: 123.51
C19: Макаронные изделия отварные с маслом сливочным | D19: 130/3 | E19: 165.79
C20: Компот из свежих яблок | D20: 180 | E20: 103.14
C21: Хлеб пшеничный | D21: 30 | E21: 70.57
C22: Хлеб ржаной | D22: 45 | E22: 89.19
B23: Полдник/төштән соңгы аш | C23: Напиток ацидоф | D23: 180 | E23: 92.00
B24: Ужин/кичке аш | C24: Расстегай с рыбой | D24: 100 | E24: 220.00
C25: Напиток из шиповника | D25: 180/6 | E25: 31.38
D27: 170,64 | E27: =E25+E24+E23+E22+E21+E20+E19+E18+E17+E16+E15+E14+E13+E12 -> 1489.55

Sheet 12 ноября
B1: от 23.12.2023 г.
C4: 8 день
B6: Д/сад | C6: МБДОУ "Детский сад "Солнышко" с. Ямаши
B8: 10 | C8: Блюдо | D8: С 3 лет | E8: до 7 лет
D9: грамм | E9: ккал
B10: Завтрак/иртәнге аш | C10: Каша геркулесовая молочная с маслом сливочным | D10: 180/3 | E10: 238.71
C11: Какао с молоком | D11: 180/6 | E11: 90.78
C12: Бутерброд с маслом сливочным | D12: 30/5 | E12: 111.68
B13: 09.00 | C13: Сок | D13: 200 | E13: 84.8
B14: Обед/төшке аш | C14: Винегрет | D14: 60 | E14: 75.06
C15: Щи со свежей капустой с картофелем, со сметаной | D15: 180/10/7 | E15: 84.80
C16: Тефтели мясные | D16: 60/20 | E16: 125.85
C17: Каша гречневая рассыпчатая с маслом сливочным | D17: 130/3 | E17: 205.27
C18: Компот из урюка | D18: 180 | E18: 68.20
C19: Хлеб пшеничный | D19: 30 | E19: 70.57
C20: Хлеб ржаной | D20: 45 | E20: 89.19
B21: Полдник/төштән соңгы аш | C21: Ряженка | D21: 180 | E21: 92.00
C22: Сушки | D22: 20 | E22: 67.80
B23: Ужин/кичке аш | C23: Пудинг творожный запеченный с повидлом | D23: 130/20 | E23: 360.20
C24: Чай с сахаром | D24: 180/6 | E24: 24.10
D25: 170,64 руб | E25: =+E24+E23+E22+E21+E20+E19+E18+E17+E16+E15+E14+E13+E12+E11+E10 -> 1789.01

Sheet 13 ноября
B1: Согласно контракту
B2: №2024.617
B3: от 23.12.2023 г.
C6: 9 день
B8: Д/сад | C8: МБДОУ "Детский сад "Солнышко" с. Ямаши
B10: 10 | C10: Блюдо | D10: С 3 лет | E10: до 7 лет
D11: грамм | E11: ккал
B12: Завтрак/иртәнге аш | C12: Каша пшенная молочная с маслом сливочным | D12: 180/3 | E12: 184.24
C13: Чай с молоком и сахаром | D13: 180/6 | E13: 75.76
C14: Бутерброд с маслом сливочным,с сыром | D14: 30/5/5 | E14: 128.77
B15: 09.00 | C15: Апельсин | D15: 100 | E15: 43.0
B16: Обед/төшке аш | C16: салат из моркови с сахаром | D16: 60 | E16: 31.38
C17: суп лапша домашняя на курином б-не, с мясом птицы | D17: 180/10 | E17: 109.54
C18: Пюре картофельное | D18: 140 | E18: 128.10
C19: Рыба тушеная с овощами | D19: 50/25 | E19: 105.00
C20: Напиток из сухофруктов | D20: 180 | E20: 71.52
C21: Хлеб пшеничный | D21: 30 | E21: 70.57
C22: Хлеб ржаной | D22: 45 | E22: 89.19
B23: Полдник/төштән соңгы аш | C23: кисломолочный напиток | D23: 180 | E23: 92.00
B24: Ужин/кичке аш | C24: Вак балиш с рисом и мясом | D24: 150 | E24: 234.63
C25: чай с сахаром и лимоном | D25: 180/6/7 | E25: 26.48
D27: 170,64 руб | E27: =E25+E24+E23+E22+E21+E20+E19+E18+E17+E16+E15+E14+E13+E12 -> 1390.18

Sheet 14 ноября
C1: Согласно контракту
C2: №2024.617
C3: от 23.12.2023 г.
D5: 10 день
C8: Д/сад | D8: МБДОУ "Детский сад "Солнышко" с. Ямаши
C10: 10 | D10: Блюдо | E10: С 3 лет | F10: до 7 лет
E11: грамм | F11: ккал
C12: Завтрак/иртәнге аш | D12: Каша рисовая молочная с маслом сливочным | E12: 180/3 | F12: 225.00
D13: Чай с сахаром, с яблоком | E13: 180/6/10 | F13: 28.7
D14: Бутербр с маслом слив, с сыром | E14: 30/5 | F14: 111.68
C15: 09.00 | D15: Сок | E15: 200 | F15: 84.8
C16: Обед/төшке аш | D16: Салат из зеленого горошка к/с | E16: 50 | F16: 41.80
D17: Суп картофельный с пшенной крупой на курином бульоне | E17: 180/10/5 | F17: 51.45
D18: Жаркое по - домашнему из отварной птицы | E18: 200 | F18: 236.20
D19: Компот из фруктов | E19: 180 | F19: 39.47
D20: хлеб пшеничный | E20: 30 | F20: 70.57
D21: Хлеб ржаной | E21: 45 | F21: 89.19
C22: Полдник/төштән соңгы аш | D22: Кефир | E22: 185 | F22: 90.00
D23: Пряники | E23: 35 | F23: 128.10
C24: Ужин/кичке аш | D24: Сырники из творога с повидлом | E24: 120/30 | F24: 379.80
D25: Напиток из шиповника | E25: 180/6 | F25: 31.38
E26: 170,64 руб | F26: =F25+F24+F23+F22+F21+F20+F19+F18+F17+F16+F15+F14+F13+F12 -> 1608.14

Sheet 01 апреля (hidden)
B1: Согласно контракту
B2: №2024.617
B3: от 23.12.2023 г.
C5: 7 день
B8: Д/сад | C8: МБДОУ "ЦРР-д/с № 22"Алсу"
B10: 10 | C10: Блюдо | D10: С 3 лет | E10: до 7 лет
D11: грамм | E11: ккал
B12: Завтрак/иртәнге аш | C12: Каша ячневая молочная с маслом слив | D12: 180/3 | E12: 223.41
C13: Кофейный напиток с молоком | D13: 180/6 | E13: 42.67
C14: Бутерброд с маслом слив и сыр | D14: 30/10/5 | E14: 146.10
B15: 09.00 | C15: Яблоко | D15: 100 | E15: 47.0
B16: Обед/төшке аш | C16: Салат из отварной свеклы с маслом растительным | D16: 60 | E16: 56.34
C17: Суп картофельный с клецками на б-не из индейки | D17: 180 | E17: 120.08
C18: Гуляш из отварной индейки | D18: 40/40 | E18: 136.31
C19: Пюре из бобовых и картофеля с масл слив | D19: 140 | E19: 172.40
C20: Компот из свежих яблок | D20: 180 | E20: 55.26
C21: Хлеб пшеничный | D21: 25 | E21: 58.75
C22: Хлеб ржаной | D22: 45 | E22: 89.10
B23: Полдник/төштән соңгы аш | C23: Кефир | D23: 180 | E23: 90.00
C24: пряники | D24: 35 | E24: 128.10
B25: Ужин/кичке аш | C25: Рыба тушенная с овощами | D25: 40/20 | E25: 63.00
C26: Рис отварной рассыпчатый с маслом | D26: 130/20 | E26: 192.01
C27: Чай с сахаром и лимоном | D27: 180/6/7 | E27: 26.48
D29: 170,64 | E29: =E27+E26+E25+E24+E23+E22+E21+E20+E19+E18+E17+E16+E15+E14+E13+E12 -> 1647.01

Sheet 02 апреля (hidden)
B1: от 23.12.2023 г.
C4: 8 день
B6: Д/сад | C6: МБДОУ "ЦРР-д/с № 22"Алсу"
B8: 10 | C8: Блюдо | D8: С 3 лет | E8: до 7 лет
D9: грамм | E9: ккал
B10: Завтрак/иртәнге аш | C10: Каша манная молочная с маслом сливочным | D10: 180/3 | E10: 186.30
C11: Какао с молоком | D11: 180/6 | E11: 58.83
C12: Бутерброд с маслом сливочным | D12: 30/5 | E12: 111.60
B13: 09.00 | C13: Сок | D13: 180 | E13: 76.0
B14: Обед/төшке аш | C14: Салат из пропущенный моркови с яблоками | D14: 60 | E14: 24.24
C15: Щи со свежей капустой с картофелем, со сметаной | D15: 180/11/7 | E15: 75.96
C16: Биточки домашние | D16: 70 | E16: 225.40
C17: Каша перловая рассыпчатая с овощами и маслом слив | D17: 130/30 | E17: 137.68
C18: Компот из урюка | D18: 180 | E18: 68.20
C19: Хлеб пшеничный | D19: 25 | E19: 58.75
C20: Хлеб ржаной | D20: 45 | E20: 89.10
B21: Полдник/төштән соңгы аш | C21: Молоко кипяченое | D21: 180 | E21: 96.30
C22: Булочка с сахаром | D22: 35 | E22: 170.67
B23: Ужин/кичке аш | C23: Омлет натуральный | D23: 150 | E23: 335.23
C24: Чай с сахаром | D24: 180/6 | E24: 24.10
C25: Хлеб пшеничный | D25: 30 | E25: 70.50
D26: 170,64 руб | E26: =E25+E24+E23+E22+E21+E20+E19+E18+E17+E16+E15+E14+E13+E12+E11+E10 -> 1808.86

Sheet 03 апреля (hidden)
B2: Согласно контракту
B3: №2024.617
B4: от 23.12.2023 г.
C7: 9 день
B9: Д/сад | C9: МБДОУ "ЦРР-д/с № 22"Алсу"
B11: 10 | C11: Блюдо | D11: С 3 лет | E11: до 7 лет
D12: грамм | E12: ккал
B13: Завтрак/иртәнге аш | C13: Каша пшеничная молочная с маслом сливочным | D13: 180/3 | E13: 241.16
C14: Чай с молоком и сахаром | D14: 180/6 | E14: 72.7
C15: Бутерброд с сыром, маслом сливочным | D15: 30/5/5 | E15: 111.60
B16: 09.00 | C16: Яблоко | D16: 100 | E16: 47.0
B17: Обед/төшке аш | C17: Салат из квашенной капусты | D17: 50 | E17: 42.85
C18: суп лапша домашняя на курином б-не, с мясом птицы | D18: 180/10 | E18: 114.78
C19: Жаркое из птицы по домашнему | D19: 180 | E19: 303.43
C20: Напиток из сухофруктов | D20: 180 | E20: 68.18
C21: Хлеб пшеничный | D21: 25 | E21: 58.75
C22: Хлеб ржаной | D22: 45 | E22: 89.10
B23: Полдник/төштән соңгы аш | C23: кисломолочный напиток | D23: 180 | E23: 91.80
B24: Ужин/кичке аш | C24: Ватрушка королевская | D24: 150 | E24: 404.00
C25: чай с сахаром и лимоном | D25: 180/6/7 | E25: 26.48
D27: 170,64 руб | E27: =E25+E24+E23+E22+E21+E20+E19+E18+E17+E16+E15+E14+E13 -> 1671.83

Sheet 04 апреля (hidden)
B2: Согласно контракту
B3: №2024.617
B4: от 23.12.2023 г.
C6: 10 день
B9: Д/сад | C9: МБДОУ "ЦРР-д/с № 22"Алсу"
B11: 10 | C11: Блюдо | D11: С 3 лет | E11: до 7 лет
D12: грамм | E12: ккал
B13: Завтрак/иртәнге аш | C13: Каша геркулесовая молочная с маслом сливочным | D13: 180/5 | E13: 233.10
C14: Кофейный напиток с молоком | D14: 180/6 | E14: 42.67
C15: Бутерброд с маслом сливочным с сыром | D15: 30/10/5 | E15: 146.10
B16: 09.00 | C16: Сок | D16: 180 | E16: 76.0
B17: Обед/төшке аш | C17: Салат из свеклы | D17: 60 | E17: 56.34
C18: Суп картофельный с рисовой крупой,с мясн фрикадельками,со смет | D18: 180/10/5 | E18: 79.60
C19: Котлеты рыбные с маслом сливочным | D19: 70/3 | E19: 144.36
C20: Макаронные изделия отварные с овощами | D20: 130 | E20: 163.28
C21: Кисель | D21: 180 | E21: 75.24
C22: хлеб пшеничный | D22: 25 | E22: 58.75
C23: Хлеб ржаной | D23: 45 | E23: 89.10
B24: Полдник/төштән соңгы аш | C24: Ряженка | D24: 180 | E24: 91.80
B25: Ужин/кичке аш | C25: Каша гречневая вязкая с мясом и овощами | D25: 200 | E25: 268.50
C26: Напиток из шиповника | D26: 180/6 | E26: 79.38
C27: Хлеб пшеничный | D27: 30 | E27: 70.50
D28: 170,64 руб | E28: =E27+E26+E25+E24+E23+E22+E21+E20+E19+E18+E17+E16+E15+E14+E13 -> 1674.72

Sheet 10 апреля (hidden)
B2: Согласно контракту
B3: №2024.617
B4: от 23.12.2023 г.
C7: 4 день
B9: Д/сад | C9: МБДОУ "ЦРР-д/с № 22"Алсу"
B11: 10 | C11: Блюдо | D11: С 3 лет | E11: до 7 лет
D12: грамм | E12: ккал
B13: Завтрак/иртәнге аш | C13: Каша ячневая молочная с маслом сливочным | D13: 180/3 | E13: 223.41
C14: Кофейный напиток с молоком | D14: 180/6 | E14: 42.67
C15: Бутерброд с маслом сливочным, повидлом | D15: 30/5/10 | E15: 119.80
B16: 09.00 | C16: Яблоко | D16: 100 | E16: 47.0
B17: Обед/төшке аш | C17: Салат из зеленого горошка к/с | D17: 50 | E17: 41.80
C18: Суп картофельный с пшенной крупой | D18: 180 | E18: 61.74
C19: птица, тушенная с соусе с овощами | D19: 200 | E19: 264.00
C20: Компот из сухофруктов | D20: 180 | E20: 108.00
C21: Хлеб пшеничный | D21: 25 | E21: 58.75
C22: Хлеб ржаной | D22: 45 | E22: 89.10
B23: Полдник/төштән соңгы аш | C23: Кефир | D23: 180 | E23: 90.00
C24: Булочка с сахаром | D24: 35 | E24: 96.57
B25: Ужин/кичке аш | C25: Омлет натуральный с сыром | D25: 150 | E25: 289.66
C26: Чай с сахаром | D26: 180/6 | E26: 24.10
C27: Хлеб пшеничный | D27: 30 | E27: 70.50
D28: 170,64 руб | E28: =E27+E26+E25+E24+E23+E22+E21+E20+E19+E18+E17+E16+E15+E14+E13 -> 1627.10

Sheet 11 апреля (hidden)
B2: Согласно контракту
B3: №2024.617
B4: от 23.12.2023 г.
C6: 5 день
B9: Д/сад | C9: МБДОУ "ЦРР-д/с № 22"Алсу"
B11: 10 | C11: Блюдо | D11: С 3 лет | E11: до 7 лет
D12: грамм | E12: ккал
B13: Завтрак/иртәнге аш | C13: Суп молочный с вермишелью | D13: 200 | E13: 120.00
C14: какао с молоком | D14: 180 | E14: 58.83
C15: Бутерброд с сыром, маслом сливочным | D15: 30/5/5 | E15: 146.10
B16: 09.00 | C16: Яблоко | D16: 100 | E16: 47.0
B17: Обед/төшке аш | C17: Венегрет овощной | D17: 60 | E17: 75.06
C18: Суп из овощей с мясными фрикадельками,со сметаной | D18: 180/10/7 | E18: 106.12
C19: Каша гречневая рассыпчатый с овощами,с маслом слив | D19: 130/20 | E19: 141.96
C20: Котлеты рубленые из говядины | D20: 150/30 | E20: 211.06
C21: Компот из свеж яблок | D21: 180 | E21: 55.26
C22: Хлеб пшеничный | D22: 25 | E22: 58.75
C23: Хлеб ржаной | D23: 45 | E23: 89.10
B24: Полдник/төштән соңгы аш | C24: Катык | D24: 180 | E24: 91.80
C25: Мармелад | D25: 10 | E25: 83.00
B26: Ужин/кичке аш | C26: Элеш с птицей | D26: 100 | E26: 245.00
C27: Чай с сахаром и лимоном | D27: 180/6/7 | E27: 26.48
D28: 170,64 руб | E28: =E27+E26+E25+E24+E23+E22+E21+E20+E19+E18+E17+E16+E15+E14+E13 -> 1555.52

Sheet Лист25 (hidden)

Sheet 4 марта (hidden)
B2: Согласно контракту
B3: №2024.617
B4: от 23.12.2023 г.
C6: 7 день
B9: Д/сад | C9: МБДОУ "ЦРР-д/с № 22"Алсу"
B11: 10 | C11: Блюдо | D11: С 3 лет | E11: до 7 лет
D12: грамм | E12: ккал
B13: Завтрак/иртәнге аш | C13: Каша кукурузная молочная с маслом сливочным | D13: 180/5 | E13: 274.16
C14: Кофейный напиток с молоком | D14: 180 | E14: 42.67
C15: Бутерброд с маслом сливочным | D15: 30/5 | E15: 111.60
C16: Сыр порционно | D16: 10 | E16: 34.33
B17: 09.00 | C17: Яблоко | D17: 100 | E17: 47.0
B18: Обед/төшке аш | C18: Салат из отварной свеклы с маслом растительным | D18: 60 | E18: 39.90
C19: Суп картофельный с клецками на б-не из индейки | D19: 180/10 | E19: 120.08
C20: Гуляш из отварной индейки | D20: 40/40 | E20: 136.31
C21: Пюре картофельное | D21: 140 | E21: 128.10
C22: Компот из свежих фруктов | D22: 180 | E22: 55.26
C23: Хлеб пшеничный | D23: 25 | E23: 58.75
C24: Хлеб ржаной | D24: 45 | E24: 89.10
B25: Полдник/төштән соңгы аш | C25: Кефир | D25: 180 | E25: 90.00
C26: мармелад | D26: 10 | E26: 83.00
B27: Ужин/кичке аш | C27: Расстегай с рыбой | D27: 100 | E27: 325.00
C29: Чай с сахаром и лимоном | D29: 180/6/7 | E29: 26.48
D31: 158,45 руб | E31: =E29+E27+E26+E25+E24+E23+E21+E20+E19+E18+E17+E15+E14+E13 -> 1572.15

Sheet 17 ноября
B1: Согласно контракту
B2: №2024.617
B3: от 23.12.2023 г.
C6: 1 день
B8: Д/сад | C8: МБДОУ "Детский сад "Солнышко" с. Ямаши
B10: 10 | C10: Блюдо | D10: С 3 лет | E10: до 7 лет
D11: грамм | E11: ккал
B12: Завтрак/иртәнге аш | C12: Каша Геркулесовая молочная с маслом сливочным | D12: 180/3 | E12: 238.71
C13: Кофейный напиток с молоком | D13: 180/6 | E13: 74.58
C14: Бутерброд с маслом сливочным,с сыром | D14: 30/5/5 | E14: 128.77
B15: 09.00 | C15: Яблоко | D15: 100 | E15: 47.0
B16: Обед/төшке аш | C16: Икра Кабачковая | D16: 50 | E16: 34.80
C17: Суп картофельный с клецками на курином бульоне | D17: 180 | E17: 107.24
C18: Плов из птицы | D18: 200 | E18: 282.55
C19: Компот из яблок | D19: 180 | E19: 103.14
C20: Хлеб ржаной | D20: 45 | E20: 89.19
C21: Хлеб пшеничный | D21: 35 | E21: 82.25
B22: Полдник/төштән соңгы аш | C22: Напиток ацид | D22: 180 | E22: 92.00
C23: Печенье | D23: 20 | E23: 83.40
B24: Ужин/кичке аш | C24: Котлеты рыбные | D24: 70 | E24: 101.72
C25: Пюре картофельное с маслом | D25: 140/3 | E25: 147.90
C26: Чай с сахаром | D26: 180/6 | E26: 23.94
C27: Хлеб пшеничный | D27: 35 | E27: 82.25
D28: 170,64 руб | E28: =E27+E26+E25+E24+E23+E22+E21+E20+E19+E18+E17+E16+E15+E14+E13+E12 -> 1719.44

Sheet 18 ноября
B1: Согласно контракту
B2: №2024.617
B3: от 23.12.2023 г.
C5: 2 день
B8: Д/сад | C8: МБДОУ "Детский сад "Солнышко" с. Ямаши
B10: 10 | C10: Блюдо | D10: С 3 лет | E10: до 7 лет
D11: грамм | E11: ккал
B12: Завтрак/иртәнге аш | C12: Каша пшеничная молочная с маслом сливочным | D12: 180/3 | E12: 241.16
C13: какао с молоком | D13: 180/6 | E13: 90.78
C14: Бутерброд с маслом сливочным | D14: 30/5 | E14: 111.68
B15: 09.00 | C15: Сок | D15: 200 | E15: 84.8
B16: Обед/төшке аш | C16: Салат из моркови,с сахаром | D16: 60 | E16: 31.38
C17: Борщ со свежей капустой, картофелем, со сметаной | D17: 180/7 | E17: 85.97
C18: Гуляш из отварной говядины | D18: 40/40 | E18: 176.80
C19: Каша гречневая рассыпчатая с маслом сливочным | D19: 130/3 | E19: 205.27
C20: Кисель | D20: 180 | E20: 75.24
C21: Хлеб пшеничный | D21: 35 | E21: 82.25
C22: Хлеб ржаной | D22: 45 | E22: 89.19
B23: Полдник/төштән соңгы аш | C23: Ряженка | D23: 180 | E23: 92.00
C24: Вафли | D24: 20 | E24: 108.50
B25: Ужин/кичке аш | C25: Королевская ватрушка | D25: 150 | E25: 404.00
C26: Чай с сахаром и лимоном | D26: 180/6/7 | E26: 26.48
D27: 170,64 руб | E27: =E26+E25+E24+E23+E22+E21+E20+E19+E17+E18+E16+E15+E14+E12+13:13 -> 1905.50

Sheet 19 ноября
B1: Согласно контракту
B2: №2024.617
B3: от 23.12.2023 г.
C5: 3 день
B8: Д/сад | C8: МБДОУ "Детский сад "Солнышко" с. Ямаши
B10: 10 | C10: Блюдо | D10: С 3 лет | E10: до 7 лет
D11: грамм | E11: ккал
B12: Завтрак/иртәнге аш | C12: Каша Дружба молочная с маслом сливочным | D12: 180/3 | E12: 215.85
C13: Чай с сахаром и молоком | D13: 180/6 | E13: 75.76
C14: Бутерброд с маслом сливочным,с сыром | D14: 30/5/5 | E14: 128.77
B15: 09.00 | C15: Фрукт | D15: 100 | E15: 96.0
B16: Обед/төшке аш | C16: Салат из капусты с морковью | D16: 60 | E16: 52.44
C17: Расоольник ленинградский на курином бульоне со сметаной | D17: 180/7 | E17: 198.54
C18: Гороховое пюре | D18: 130 | E18: 196.94
C19: Котлеты из мяса птицы с маслом сливочным | D19: 70/2 | E19: 167.20
C20: Компот из сухофруктов | D20: 180 | E20: 72.00
C21: Хлеб ржаной | D21: 45 | E21: 89.19
B22: Полдник/төштән соңгы аш | C22: Катык | D22: 180 | E22: 92.00
C23: Сдоба обыкновенная | D23: 50 | E23: 141.00
B24: Ужин/кичке аш | C24: Омлет натур | D24: 150 | E24: 289.66
C25: Напиток из шиповника | D25: 180/6 | E25: 31.38
C26: Хлеб пшеничный | D26: 35 | E26: 82.25
D27: 170,64 руб | E27: =E26+E25+E24+E23+E22+E21++E20+E19+E18+E17+E16+E15+E14+E13+E12 -> 1928.98

Sheet 20 ноября
B1: Согласно контракту
B2: №2024.617
B3: от 23.12.2023 г.
C6: 4 день
B8: Д/сад | C8: МБДОУ "Детский сад "Солнышко" с. Ямаши
B10: 10 | C10: Блюдо | D10: С 3 лет | E10: до 7 лет
D11: грамм | E11: ккал
B12: Завтрак/иртәнге аш | C12: Каша ячневая молочная с маслом сливочным | D12: 180/3 | E12: 214.80
C13: Кофейный напиток с молоком | D13: 180/6 | E13: 74.58
C14: Бутер с маслом слив | D14: 30/5 | E14: 111.68
B15: 09.00 | C15: Сок | D15: 200 | E15: 84.8
B16: Обед/төшке аш | C16: Салат из свеклы с яблоками | D16: 60 | E16: 46.02
C17: Щи со свежей капустой, с картофелем на бульоне из индейки, со сметаной | D17: 180/7 | E17: 70.02
C18: индейка тушенная с соусе с овощами по татарски | D18: 40/30 | E18: 150.93
C19: Макаронные изделия отварные, с маслом сливочным | D19: 130/30 | E19: 165.79
C20: Компот из урюка | D20: 180 | E20: 68.20
C21: Хлеб пшеничный | D21: 35 | E21: 82.25
C22: Хлеб ржаной | D22: 45 | E22: 89.19
B23: Полдник/төштән соңгы аш | C23: Напиток ацидоф | D23: 180 | E23: 92.00
B24: Ужин/кичке аш | C24: Запеканка творожная с молоком сгущенным | D24: 130/20 | E24: 408.20
C25: Чай с сахаром | D25: 180/6 | E25: 24.10
D26: 170,64руб | E26: =+E25+E24+E23+E22+E21+E20+E19+E18+E17+E16+E15+E14+E13+E12 -> 1682.56

Sheet 21 ноября
B1: Согласно контракту
B2: №2024.617
B3: от 23.12.2023 г.
C5: 5 день
B8: Д/сад | C8: МБДОУ "Детский сад "Солнышко" с. Ямаши
B10: 10 | C10: Блюдо | D10: С 3 лет | E10: до 7 лет
D11: грамм | E11: ккал
B12: Завтрак/иртәнге аш | C12: Каша жидкая молочная гречневая, с маслом сливочным | D12: 180,3 | E12: 225.90
C13: Чай без сахара, с мармеладом | D13: 180/20 | E13: 96.3
C14: Бутерброд с сыром, маслом сливочным | D14: 30/5/5 | E14: 128.77
B15: 09.00 | C15: Яблоко | D15: 100 | E15: 47.0
B16: Обед/төшке аш | C16: Салат из моркови с сахаром | D16: 60 | E16: 31.38
C17: Суп гороховый с картофелем, с мясными фрикадельками | D17: 180/10 | E17: 126.35
C18: Тефтели мясные | D18: 70 | E18: 129.44
C19: Рагу из овощей | D19: 150 | E19: 202.86
C20: Компот из свежих фруктов | D20: 180 | E20: 39.47
C21: Хлеб ржаной | D21: 45 | E21: 89.19
B22: Полдник/төштән соңгы аш | C22: Ряженка | D22: 180 | E22: 92.00
C23: Сушка | D23: 20 | E23: 66.20
B24: Ужин/кичке аш | C24: Рыба, тушеная с овощами | D24: 50/25 | E24: 105.00
C25: Пюре картофельное | D25: 140 | E25: 128.10
C26: Хлеб пшеничный | D26: 35 | E26: 82.25
C27: Чай с сахаром и лимоном | D27: 180/6/7 | E27: 26.48
D28: 170,64 руб | E28: =E27+E26+E25+E24+E23+E22+E21+E20+E19+E17+E12+E18+E16+E15+E14+E13 -> 1616.69

Sheet 24 ноября
B1: Согласно контракту
B2: №2024.617
B3: от 23.12.2023 г.
C6: 6 день
B8: Д/сад | C8: МБДОУ "Детский сад "Солнышко" с. Ямаши
B10: 10 | C10: Блюдо | D10: С 3 лет | E10: до 7 лет
D11: грамм | E11: ккал
B12: Завтрак/иртәнге аш | C12: Каша манная молочная с маслом сливочным | D12: 180/3 | E12: 186.30
C13: Чай с молоком и сахаром | D13: 180/6 | E13: 75.76
C14: Бутерброд с маслом сливочным | D14: 30/5 | E14: 111.68
B15: 09.00 | C15: Сок | D15: 200 | E15: 84.8
B16: Обед/төшке аш | C16: Салат из кукурузы к/с | D16: 50 | E16: 49.65
C17: Суп вермишелевый с картофелем с куриными фрикадельками | D17: 180/10 | E17: 114.56
C18: Голубцы ленивые со сметанно-томатным соусом | D18: 120/30 | E18: 201.98
C19: Напиток из сухофруктов | D19: 180 | E19: 71.52
C20: Хлеб ржаной | D20: 45 | E20: 89.19
B21: Полдник/төштән соңгы аш | C21: Катык | D21: 180 | E21: 92.00
C22: Печенье | D22: 40 | E22: 166.80
B23: Ужин/кичке аш | C23: Омлет | D23: 150 | E23: 289.66
C24: Хлеб пшеничный | D24: 25 | E24: 58.81
C25: Чай с сахаром,с яблоками | D25: 180/6 | E25: 28.70
D26: 170,64 руб | E26: =E25+E24+E23+E22+E21+E20+E19+E18+E17+E16+E15+E14+E13+E12 -> 1621.41

Sheet 25 ноября
C2: 7 день
B5: Д/сад | C5: МБДОУ "Детский сад "Солнышко" с. Ямаши
B7: 10 | C7: Блюдо | D7: С 3 лет | E7: до 7 лет
D8: грамм | E8: ккал
B9: Завтрак/иртәнге аш | C9: Каша ячневая молочная с маслом слив | D9: 180/3 | E9: 214.80
C10: Кофейный напиток с молоком | D10: 180/6 | E10: 74.58
C11: Бутерброд с маслом слив и сыр | D11: 30/5/5 | E11: 128.77
B12: 09.00 | C12: Яблоко | D12: 100 | E12: 47.0
B13: Обед/төшке аш | C13: Салат из квашенной капусты | D13: 50 | E13: 42.85
C14: Борщ со свежей капустой с картофелем на курином бульоне со сметаной | D14: 180/7 | E14: 85.97
C15: Гуляш из отварной птицы | D15: 40/40 | E15: 123.51
C16: Макаронные изделия отварные с маслом сливочным | D16: 130/3 | E16: 165.79
C17: Компот из свежих яблок | D17: 180 | E17: 103.14
C18: Хлеб пшеничный | D18: 30 | E18: 70.57
C19: Хлеб ржаной | D19: 45 | E19: 89.19
B20: Полдник/төштән соңгы аш | C20: Напиток ацидоф | D20: 180 | E20: 92.00
B21: Ужин/кичке аш | C21: Расстегай с рыбой | D21: 100 | E21: 220.00
C22: Напиток из шиповника | D22: 180/6 | E22: 31.38
D24: 170,64 | E24: =E22+E21+E20+E19+E18+E17+E16+E15+E14+E13+E12+E11+E10+E9 -> 1489.55

Sheet 26 ноября
B2: от 23.12.2023 г.
C5: 8 день
B7: Д/сад | C7: МБДОУ "Детский сад "Солнышко" с. Ямаши
B9: 10 | C9: Блюдо | D9: С 3 лет | E9: до 7 лет
D10: грамм | E10: ккал
B11: Завтрак/иртәнге аш | C11: Каша геркулесовая молочная с маслом сливочным | D11: 180/3 | E11: 238.71
C12: Какао с молоком | D12: 180/6 | E12: 90.78
C13: Бутерброд с маслом сливочным | D13: 30/5 | E13: 111.68
B14: 09.00 | C14: Сок | D14: 200 | E14: 84.8
B15: Обед/төшке аш | C15: Винегрет | D15: 60 | E15: 75.06
C16: Щи со свежей капустой с картофелем, со сметаной | D16: 180/10/7 | E16: 84.80
C17: Тефтели мясные | D17: 60/20 | E17: 125.85
C18: Каша гречневая рассыпчатая с маслом сливочным | D18: 130/3 | E18: 205.27
C19: Компот из урюка | D19: 180 | E19: 68.20
C20: Хлеб пшеничный | D20: 30 | E20: 70.57
C21: Хлеб ржаной | D21: 45 | E21: 89.19
B22: Полдник/төштән соңгы аш | C22: Ряженка | D22: 180 | E22: 92.00
C23: Сушки | D23: 20 | E23: 67.80
B24: Ужин/кичке аш | C24: Пудинг творожный запеченный с повидлом | D24: 130/20 | E24: 360.20
C25: Чай с сахаром | D25: 180/6 | E25: 24.10
D26: 170,64 руб | E26: =+E25+E24+E23+E22+E21+E20+E19+E18+E17+E16+E15+E14+E13+E12+E11 -> 1789.01

Sheet 27 ноября
B1: Согласно контракту
B2: №2024.617
B3: от 23.12.2023 г.
C6: 9 день
B8: Д/сад | C8: МБДОУ "Детский сад "Солнышко" с. Ямаши
B10: 10 | C10: Блюдо | D10: С 3 лет | E10: до 7 лет
D11: грамм | E11: ккал
B12: Завтрак/иртәнге аш | C12: Каша пшенная молочная с маслом сливочным | D12: 180/3 | E12: 184.24
C13: Чай с молоком и сахаром | D13: 180/6 | E13: 75.76
C14: Бутерброд с маслом сливочным,с сыром | D14: 30/5/5 | E14: 128.77
B15: 09.00 | C15: Апельсин | D15: 100 | E15: 43.0
B16: Обед/төшке аш | C16: салат из моркови с сахаром | D16: 60 | E16: 31.38
C17: суп лапша домашняя на курином б-не, с мясом птицы | D17: 180/10 | E17: 109.54
C18: Пюре картофельное | D18: 140 | E18: 128.10
C19: Рыба тушеная с овощами | D19: 50/25 | E19: 105.00
C20: Напиток из сухофруктов | D20: 180 | E20: 71.52
C21: Хлеб пшеничный | D21: 30 | E21: 70.57
C22: Хлеб ржаной | D22: 45 | E22: 89.19
B23: Полдник/төштән соңгы аш | C23: кисломолочный напиток | D23: 180 | E23: 92.00
B24: Ужин/кичке аш | C24: Вак балиш с рисом и мясом | D24: 150 | E24: 234.63
C25: чай с сахаром и лимоном | D25: 180/6/7 | E25: 26.48
D27: 170,64 руб | E27: =E25+E24+E23+E22+E21+E20+E19+E18+E17+E16+E15+E14+E13+E12 -> 1390.18

Sheet 28 ноября
B2: Согласно контракту
B3: №2024.617
B4: от 23.12.2023 г.
C6: 10 день
B9: Д/сад | C9: МБДОУ "Детский сад "Солнышко" с. Ямаши
B11: 10 | C11: Блюдо | D11: С 3 лет | E11: до 7 лет
D12: грамм | E12: ккал
B13: Завтрак/иртәнге аш | C13: Каша рисовая молочная с маслом сливочным | D13: 180/3 | E13: 225.00
C14: Чай с сахаром, с яблоком | D14: 180/6/10 | E14: 28.7
C15: Бутербр с маслом слив, с сыром | D15: 30/5 | E15: 111.68
B16: 09.00 | C16: Сок | D16: 200 | E16: 84.8
B17: Обед/төшке аш | C17: Салат из зеленого горошка к/с | D17: 50 | E17: 41.80
C18: Суп картофельный с пшенной крупой на курином бульоне | D18: 180/10/5 | E18: 51.45
C19: Жаркое по - домашнему из отварной птицы | D19: 200 | E19: 236.20
C20: Компот из фруктов | D20: 180 | E20: 39.47
C21: хлеб пшеничный | D21: 30 | E21: 70.57
C22: Хлеб ржаной | D22: 45 | E22: 89.19
B23: Полдник/төштән соңгы аш | C23: Кефир | D23: 185 | E23: 90.00
C24: Пряники | D24: 35 | E24: 128.10
B25: Ужин/кичке аш | C25: Сырники из творога с повидлом | D25: 120/30 | E25: 379.80
C26: Напиток из шиповника | D26: 180/6 | E26: 31.38
D27: 170,64 руб | E27: =E26+E25+E24+E23+E22+E21+E20+E19+E18+E17+E16+E15+E14+E13 -> 1608.14

Sheet ноябрь (hidden)
B2: Согласно контракту
B3: №2024.617
B4: от 23.12.2023 г.
C6: 2 день
B9: Д/сад | C9: МБДОУ "ЦРР-д/с № 22"Алсу"
B11: 10 | C11: Блюдо | D11: С 3 лет | E11: до 7 лет
D12: грамм | E12: ккал
B13: Завтрак/иртәнге аш | C13: Каша полбяная молочная с маслом сливочным | D13: 180/3 | E13: 202.64
C14: какао с молоком | D14: 180/6 | E14: 58.83
C15: Бутерброд с сыром, маслом сливочным | D15: 30/10/5 | E15: 146.10
B16: 09.00 | C16: Сок | D16: 180 | E16: 76.0
B17: Обед/төшке аш | C17: Салат из картофеля с солеными огурцами | D17: 60 | E17: 66.84
C18: Борщ со свежей капустой, картофелем, со сметаной | D18: 180/10/7 | E18: 87.64
C19: Тефтели куриные в сметанно-томатномсоусе | D19: 50/25 | E19: 112.50
C20: Макароны отварны с маслом сливочным | D20: 130/3 | E20: 155.22
C21: Компот из свежих яблок | D21: 180 | E21: 55.26
C22: Хлеб пшеничный | D22: 25 | E22: 58.75
C23: Хлеб ржаной | D23: 45 | E23: 89.10
B24: Полдник/төштән соңгы аш | C24: Молоко кипяченное | D24: 180 | E24: 96.30
C25: Печенье | D25: 20 | E25: 90.20
B26: Ужин/кичке аш | C26: Запеканка творожная с повидлом | D26: 120/30 | E26: 418.50
C27: Чай с сахаром и лимоном | D27: 180/6/7 | E27: 26.48
D28: 170,64 руб | E28: =E27+E26+E25+E24+E23+E22+E21+E20+E18+E19+E17+E16+E15+E13+14:14 -> 1740.36

Sheet 9 октября (hidden)
B1: Согласно контракту
B2: №2024.617
B3: от 23.12.2023 г.
C6: 4 день
B8: Д/сад | C8: МБДОУ "ЦРР-д/с № 22"Алсу"
B10: 10 | C10: Блюдо | D10: С 3 лет | E10: до 7 лет
D11: грамм | E11: ккал
B12: Завтрак/иртәнге аш | C12: Каша ячневая молочная с маслом сливочным | D12: 180/3 | E12: 223.41
C13: Кофейный напиток с молоком | D13: 180/6 | E13: 42.67
C14: Бутер с маслом слив,с повидлом | D14: 30/5/10 | E14: 119.80
B15: 09.00 | C15: Сок | D15: 100 | E15: 76.0
B16: Обед/төшке аш | C16: Огурцы свежие порционно | D16: 50 | E16: 41.80
C17: Суп картофельный с пшенной крупой на курином б-не | D17: 180 | E17: 61.74
C18: птица, тушенная с соусе с овощами | D18: 200 | E18: 264.00
C19: Компот из сухофруктов | D19: 180 | E19: 68.18
C20: Хлеб пшеничный | D20: 25 | E20: 58.75
C21: Хлеб ржаной | D21: 45 | E21: 89.10
B22: Полдник/төштән соңгы аш | C22: Катык | D22: 180 | E22: 102.00
B23: Ужин/кичке аш | C23: Омлет натуральный с сыром | D23: 150 | E23: 289.66
C24: Чай с сахаром | D24: 180/6 | E24: 24.10
C25: Хлеб пшеничный | D25: 30 | E25: 70.50
D26: 170,64руб | E26: =E25+E24+E23+E22+E21+E20+E19+E18+E17+E16+E15+E14+E13+E12 -> 1531.71

Sheet Лист27 (hidden)

Sheet Лист31 (hidden)

Sheet 2 июня (hidden)
B2: Согласно контракту
B3: №2024.617
B4: от 23.12.2023 г.
C7: 1 день
B9: Д/сад | C9: МБДОУ "ЦРР-д/с № 22"Алсу"
B11: 10 | C11: Блюдо | D11: С 3 лет | E11: до 7 лет
D12: грамм | E12: ккал
B13: Завтрак/иртәнге аш | C13: Каша Дружба молочная с маслом сливочным | D13: 180/5 | E13: 225.00
C14: Кофейный напиток с молоком | D14: 180/6 | E14: 42.67
C15: Бутерброд с маслом сливочным | D15: 30/5 | E15: 111.60
B16: 09.00 | C16: Яблоко | D16: 100 | E16: 47.0
B17: Обед/төшке аш | C17: Икра морковная | D17: 50 | E17: 45.60
C18: Суп вермишелевый с картофелем с мясными фрикадельками | D18: 180/15 | E18: 114.56
C19: Голубцы ленивые со сметанно-томатным соусом | D19: 120/30 | E19: 201.98
C20: Напиток из сухофруктов | D20: 180 | E20: 68.18
C21: Хлеб ржаной | D21: 45 | E21: 89.10
C22: Хлеб пшеничный | D22: 25 | E22: 58.75
B23: Полдник/төштән соңгы аш | C23: Кефир | D23: 180 | E23: 90.00
C24: Вафли | D24: 20 | E24: 192.00
B25: Ужин/кичке аш | C25: Котлеты рыбные | D25: 70 | E25: 124.56
C26: Пюре картофельное | D26: 140 | E26: 128.10
C27: Чай с сахаром | D27: 180/6 | E27: 24.10
C28: Хлеб пшеничный | D28: 30 | E28: 70.50
D29: 170,64 руб | E29: =E28+E27+E26+E25+E24+E23+E22+E21+E20+E19+E18+E17+E16+E15+E14+E13 -> 1633.70

Sheet 30 май (hidden)
B1: от 23.12.2023 г.
C3: 2 день
B6: Д/сад | C6: МБДОУ "ЦРР-д/с № 22"Алсу"
B8: 10 | C8: Блюдо | D8: С 3 лет | E8: до 7 лет
D9: грамм | E9: ккал
B10: Завтрак/иртәнге аш | C10: Каша полбяная молочная с маслом сливочным | D10: 180/3 | E10: 202.64
C11: какао с молоком | D11: 180/6 | E11: 58.83
C12: Бутерброд с сыром, маслом сливочным | D12: 30/10/5 | E12: 146.10
B13: 09.00 | C13: Сок | D13: 180 | E13: 76.0
B14: Обед/төшке аш | C14: Салат из картофеля с солеными огурцами | D14: 60 | E14: 66.84
C15: Борщ со свежей капустой, картофелем, со сметаной | D15: 180/10/7 | E15: 87.64
C16: Тефтели куриные в сметанно-томатномсоусе | D16: 50/25 | E16: 112.50
C17: Макароны отварны с маслом сливочным | D17: 130/3 | E17: 155.22
C18: Компот из свежих яблок | D18: 180 | E18: 55.26
C19: Хлеб пшеничный | D19: 25 | E19: 58.75
C20: Хлеб ржаной | D20: 45 | E20: 89.10
B21: Полдник/төштән соңгы аш | C21: Молоко кипяченное | D21: 180 | E21: 96.30
C22: Печенье | D22: 20 | E22: 90.20
B23: Ужин/кичке аш | C23: Запеканка творожная с повидлом | D23: 120/30 | E23: 418.50
C24: Чай с сахаром и лимоном | D24: 180/6/7 | E24: 26.48
D25: 170,64 руб | E25: =E24+E23+E22+E21+E20+E19+E18+E17+E15+E16+E14+E13+E12+E10+11:11 -> 1740.36

Sheet 23 сентября (hidden)
B2: Согласно контракту
B3: №2024.617
B4: от 23.12.2023 г.
C7: 6 день
B9: Д/сад | C9: МБДОУ "ЦРР-д/с № 22"Алсу"
B11: 10 | C11: Блюдо | D11: С 3 лет | E11: до 7 лет
D12: грамм | E12: ккал
B13: Завтрак/иртәнге аш | C13: Каша пшенная молочная с маслом сливочным | D13: 180/3 | E13: 208.76
C14: Чай с молоком и сахаром | D14: 180/6 | E14: 75.76
C15: Бутерброд с маслом сливочным | D15: 30/5 | E15: 111.60
B16: 09.00 | C16: Сок | D16: 180 | E16: 94.4
B17: Обед/төшке аш | C17: Салат из моркови | D17: 60 | E17: 24.24
C18: Суп из овощей на курином б-не, с мясными фрикадельками, со сметаной | D18: 180/11/7 | E18: 101.49
C19: Ежики куриные в сметанно-томатномном соусе | D19: 50/25 | E19: 123.03
C20: вермишель отварной | D20: 130 | E20: 135.46
C21: Напиток из сухофруктов | D21: 180 | E21: 87.50
C22: Хлеб пшеничный | D22: 25 | E22: 58.75
C23: Хлеб ржаной | D23: 45 | E23: 89.10
B24: Полдник/төштән соңгы аш | C24: Катык | D24: 180 | E24: 91.86
C25: Булочка с сахаром | D25: 50 | E25: 170.67
B26: Ужин/кичке аш | C26: Запеканка творожная с повидлом | D26: 120/30 | E26: 418.50
C27: Напиок из шиповника | D27: 180/5 | E27: 24.10
D28: 152,36 руб | E28: =E27+E26+E25+E24+E23+E22+E20+E19+E18+E17+E16+E15+E14+E13 -> 1727.72

Sheet 24 сентября (hidden)
B2: Согласно контракту
B3: №2024.617
B4: от 23.12.2023 г.
C6: 7 день
B9: Д/сад | C9: МБДОУ "ЦРР-д/с № 22"Алсу"
B11: 10 | C11: Блюдо | D11: С 3 лет | E11: до 7 лет
D12: грамм | E12: ккал
B13: Завтрак/иртәнге аш | C13: Каша кукурузная молочная с маслом сливочным | D13: 180/5 | E13: 274.16
C14: Кофейный напиток с молоком | D14: 180 | E14: 42.67
C15: Бутерброд с маслом сливочным | D15: 30/5 | E15: 111.60
C16: Сыр порционно | D16: 10 | E16: 34.33
B17: 09.00 | C17: Сок | D17: 180 | E17: 94.4
B18: Обед/төшке аш | C18: Салат из отварной свеклы с маслом расстительным | D18: 60 | E18: 53.88
C19: Суп картофельный с клецками на мясном б-не с мясом | D19: 180/10 | E19: 121.66
C20: Гуляш из отварной говядины | D20: 40/40 | E20: 131.20
C21: Пюре картофельное | D21: 140 | E21: 128.10
C22: Компот из свежих фруктов | D22: 180 | E22: 55.26
C23: Хлеб пшеничный | D23: 25 | E23: 58.75
C24: Хлеб ржаной | D24: 45 | E24: 89.10
B25: Полдник/төштән соңгы аш | C25: Кефир | D25: 180 | E25: 90.00
C26: мармелад | D26: 10 | E26: 83.00
B27: Ужин/кичке аш | C27: Расстегай с рыбой | D27: 100 | E27: 420.00
C29: Чай с сахаром и лимоном | D29: 180/6/7 | E29: 26.48
D31: 152,36 руб | E31: =E29+E27+E26+E25+E24+E23+E21+E20+E19+E18+E17+E15+E14+E13 -> 1725.00

Sheet 25 сентября (hidden)
B2: Согласно контракту
B3: №2024.617
B4: от 23.12.2023 г.
C7: 8 день
B9: Д/сад | C9: МБДОУ "ЦРР-д/с № 22"Алсу"
B11: 10 | C11: Блюдо | D11: С 3 лет | E11: до 7 лет
D12: грамм | E12: ккал
B13: Завтрак/иртәнге аш | C13: Каша манная молочная с маслом сливочным | D13: 180/5 | E13: 199.50
C14: Какао с молоком | D14: 180/6 | E14: 58.83
C15: Бутерброд с маслом сливочным | D15: 30/5 | E15: 111.60
B16: 09.00 | C16: Сок | D16: 180 | E16: 97.4
B17: Обед/төшке аш | C17: Помидоры свежие | D17: 60 | E17: 14.30
C18: Щи со свежей капустой с картофелем на курином б-не, с куриными фрикадельками и со сметаной | D18: 180/11/7 | E18: 104.59
C19: Биточки домашние | D19: 70 | E19: 225.40
C20: Рис отварной рассыпчатый с маслом сливочным | D20: 130/20 | E20: 192.01
C21: Компот из изюма | D21: 180 | E21: 62.10
C22: Хлеб пшеничный | D22: 25 | E22: 58.75
C23: Хлеб ржаной | D23: 45 | E23: 89.10
B24: Полдник/төштән соңгы аш | C24: Молоко кипяченое | D24: 180 | E24: 96.30
C25: Кондитерские изделия (печенье) | D25: 20 | E25: 90.20
B26: Ужин/кичке аш | C26: Омлет натуральный | D26: 150 | E26: 335.23
C27: Чай с сахаром | D27: 180/6 | E27: 24.10
C28: Хлеб пшеничный | D28: 30 | E28: 70.50
D29: 152,36 руб | E29: =E27+E26+E25+E24+E23+E22+E20+E19+E18+E17+E16+E15+E14+E13 -> 1697.31

Sheet 2 сентября (hidden)
B2: Согласно контракту
B3: №2024.617
B4: от 23.12.2023 г.
C7: 1 день
B9: Д/сад | C9: МБДОУ "ЦРР-д/с № 22"Алсу"
B11: 10 | C11: Блюдо | D11: С 3 лет | E11: до 7 лет
D12: грамм | E12: ккал
B13: Завтрак/иртәнге аш | C13: Каша Дружба молочная с маслом сливочным | D13: 180/5 | E13: 207.60
C14: Кофейный напиток с молоком | D14: 180/6 | E14: 42.67
C15: Бутерброд с маслом сливочным | D15: 30/5 | E15: 111.60
B16: 09.00 | C16: Яблоко | D16: 100 | E16: 47.0
B17: Обед/төшке аш | C17: Салат из моркови | D17: 60 | E17: 34.80
C18: Суп вермишелевый с картофелем с мясными фрикадельками | D18: 180/15 | E18: 114.56
C19: Котлеты рубленные из говядины | D19: 70 | E19: 211.06
C20: Каша гречневая вязкая с маслом сливочным | D20: 130/3 | E20: 145.86
C21: Напиток из сухофруктов | D21: 180 | E21: 68.18
C22: Хлеб ржаной | D22: 45 | E22: 89.10
C23: Хлеб пшеничный | D23: 25 | E23: 58.75
B24: Полдник/төштән соңгы аш | C24: Кефир | D24: 180 | E24: 90.00
C25: Вафли | D25: 20 | E25: 192.00
B26: Ужин/кичке аш | C26: Котлеты рыбные | D26: 70 | E26: 124.56
C27: Пюре картофельное | D27: 140 | E27: 128.10
C28: Чай с сахаром | D28: 180/6 | E28: 24.10
C29: Хлеб пшеничный | D29: 30 | E29: 70.50
D30: 152,36 руб | E30: =E29+E28+E27+E26+E25+E24+E23+E22+E21+E20+E19+E18+E17+E16+E15+E14+E13 -> 1760.44

Sheet 1 апреля (hidden)
B2: Согласно контракту
B3: №2024.617
B4: от 23.12.2023 г.
C6: 10 день
B9: Д/сад | C9: МБДОУ "ЦРР-д/с № 22"Алсу" | D9: День | E9: 2024-04-01
B11: 10 | C11: Блюдо | D11: С 3 лет | E11: до 7 лет
D12: грамм | E12: ккал
B13: Завтрак/иртәнге аш | C13: Каша геркулесовая молочная с маслом сливочным | D13: 180/5 | E13: 251.91
C14: Кофейный напиток с молоком | D14: 180/6 | E14: 42.67
C15: Бутерброд с маслом сливочным | D15: 30/5 | E15: 111.60
B16: 09.00 | C16: апельсин | D16: 100 | E16: 47.0
B17: Обед/төшке аш | C17: Салат из свеклы с сыром | D17: 60 | E17: 78.42
C18: Рассольник ленинградский с куриными фрикадельками, со сметаной | D18: 180/11/7 | E18: 117.51
C19: Котлеты рыбные с маслом сливочным | D19: 70/3 | E19: 144.36
C20: Макаронные изделия отварные с овощами | D20: 130 | E20: 163.28
C21: Кисель | D21: 180 | E21: 75.24
C22: хлеб пшеничный | D22: 25 | E22: 58.75
C23: Хлеб ржаной | D23: 45 | E23: 89.10
B24: Полдник/төштән соңгы аш | C24: Молоко кипяченое | D24: 180 | E24: 96.30
C25: Кондитерские изделия (печенье) | D25: 20 | E25: 90.20
B26: Ужин/кичке аш | C26: Капуста тушеная с мясом | D26: 180 | E26: 250.30
C27: Напиток из шиповника | D27: 180/6 | E27: 79.38
C28: Хлеб пшеничный | D28: 30 | E28: 70.50
D29: 152,36 руб | E29: =E28+E27+E26+E25+E24+E23+E22+E21+E20+E19+E18+E17+E16+E15+E14+E13 -> 1766.52

Sheet 2 апреля (hidden)
B2: Согласно контракту
B3: №2024.617
B4: от 23.12.2023 г.
C6: 2 день
B9: Д/сад | C9: МБДОУ "ЦРР-д/с № 22"Алсу" | D9: День | E9: 2024-03-02
B11: 10 | C11: Блюдо | D11: С 3 лет | E11: до 7 лет
D12: грамм | E12: ккал
B13: Завтрак/иртәнге аш | C13: Каша полбяная молочная с маслом сливочным | D13: 180/3 | E13: 202.64
C14: какао с молоком | D14: 180 | E14: 58.83
C15: Бутерброд с сыром, маслом сливочным | D15: 30/5/5 | E15: 128.77
B16: 09.00 | C16: Сок | D16: 180 | E16: 94.4
B17: Обед/төшке аш | C17: Салат из картофеля с солеными огурцами | D17: 60 | E17: 66.84
C18: Борщ со свежей капустой, картофелем на курином б-не, с куриными фрикадельками, со сметаной | D18: 180/10/7 | E18: 106.63
C19: Фрикадельки куриные в молочном соусе | D19: 50/25 | E19: 136.30
C20: Макароны отварны с маслом сливочным | D20: 130/3 | E20: 155.22
C21: Компот из свежих яблок | D21: 180 | E21: 55.26
C22: Хлеб пшеничный | D22: 25 | E22: 58.75
C23: Хлеб ржаной | D23: 45 | E23: 89.10
B24: Полдник/төштән соңгы аш | C24: Ряженка | D24: 180 | E24: 91.80
C25: Булочка дорожная | D25: 50 | E25: 165.50
B26: Ужин/кичке аш | C26: Запеканка творожная с повидлом | D26: 120/30 | E26: 418.50
C27: Чай с сахаром и лимоном | D27: 180/6/7 | E27: 26.48
D28: 152,36 руб | E28: =E27+E26+E25+E24+E23+E22+E21+E20+E18+E19+E17+E16+E15+E14 -> 1652.38
